{"text_format":"1","workbook":"xlsx","n_sheets":7,"sheets":["Presentación","Instruccion","1.Ordenar","2.Priorizar","3.Resultado","4. Emisión de Juicios","Ordenando"],"not_rendered":{"charts":0,"images":3,"macros":1,"external_links":1,"defined_names":20,"comments":0,"pivot_tables":0},"unopened":[],"bounds":{"document_bytes":16777216,"sheet_cells":100000,"rows_first":2000,"rows_last":500,"rows_between":2000,"halvings":0,"cell_chars":16384,"cell_head_chars":4096},"cells_cut":0,"cells_raw":0,"read":"whole","date_system":"1900"}

{"sheet":"Presentación","index":0,"n_rows":34,"n_cols":17,"rows_kept":34,"cut":false,"hidden":false,"merged":[[32,1,32,5],[31,6,31,14],[32,6,32,14],[18,11,21,11],[1,1,3,2],[1,3,3,12],[27,1,28,3],[26,10,26,12],[27,10,28,12],[26,13,26,14],[27,13,28,14],[31,1,31,5],[26,1,26,3],[27,4,28,9],[26,4,26,9]]}
[]
[null,null,null,"PONDERACIÓN DE FACTORES Y CARACTERISTICAS ",null,null,null,null,null,null,null,null,null,"Código","SAC-F-5"]
[null,null,null,null,null,null,null,null,null,null,null,null,null,"Versión ",1]
[null,null,null,null,null,null,null,null,null,null,null,null,null,"Página ","1 de 1 "]
[]
[]
[]
[]
[]
[]
[]
[]
[]
[]
[]
[]
[]
[]
[null,null,null,null,null,null,null,null,null,null,null,"Comenzar"]
[]
[]
[]
[]
[]
[]
[]
[null,"Elaboró",null,null,"Revisó",null,null,null,null,null,"Aprobó ",null,null,"Fecha de vigencia"]
[null,"Dirección de Aseguramiento de la Calidad ",null,null,"Dirección de Planeación",null,null,null,null,null,"Rectoría",null,null,"Septiembre de 2014"]
[]
[]
[null,"CONTROL DE CAMBIOS"]
[null,"ITEM",null,null,null,null,"MODIFICACIÓN"]
[]
[null,null,null,null,null,null,null,null,null,null,null,null,null,null,null,null," "]

{"sheet":"Instruccion","index":1,"n_rows":33,"n_cols":8,"rows_kept":33,"cut":false,"hidden":true,"merged":[[15,1,15,2]]}
[]
[null,"INSTRUCCIONES"]
[]
[null,"1. Ordenar de mayor a menor el grupo de características asociadas a cada uno de los factores"]
[]
[null,"Ejemplo:"]
[null,"FACTOR ","RECURSOS FÍSICOS Y FINANCIEROS","ORDENE (3 más importante)"]
[null,1,"Recursos físicos",2]
[null,2,"Presupuesto del programa",1]
[null,3,"Administración de recursos",3]
[]
[]
[null,"2. Priorizar los factores"]
[]
[null,"Ejemplo:",null,null,null,"FACTOR 1.","FACTOR 2.","FACTOR 3."]
[null,"CRITERIOS DE EVALUACIÓN",null,null,"FACTOR 1.",null,1,3]
[null,1,"Menos Importante",null,"FACTOR 2.",{"$f":"+IF(G16=3,1,IF(G16=2,2,IF(G16=1,3,\"\")))","v":3},null,2]
[null,2,"Igualmente Importante",null,"FACTOR 3.",{"$f":"+IF(H16=3,1,IF(H16=2,2,IF(H16=1,3,\"\")))","v":1},{"$f":"+IF(G16=3,1,IF(G16=2,2,IF(G16=1,3,\"\")))","v":3}]
[null,3,"Más Importante"]
[]
[null,null,null,null,"Interpretación:"]
[null,null,null,null,"-El Factor 1 es menos importante que el factor 2"]
[null,null,null,null,"-El Factor 1 es más importante que el factor 3"]
[null,null,null,null,"-El Factor 2 es igualmente importante que el factor 3"]
[]
[null,"3. Revisar resultados"]
[]
[null,"Ejemplo:",null,null,"Registro CNA"]
[null,"FACTOR ","ORGANIZACIÓN, ADMINISTRACIÓN Y GESTIÓN",3.4482758620689655E-2,3.4482758620689653]
[null,1,"Organización, administración y gestión del programa",1.1494252873563218E-2,33.333333333333336]
[null,2,"Sistemas de comunicación e información",5.7471264367816091E-3,16.666666666666668]
[null,3,"Dirección del programa",1.7241379310344827E-2,50]
[null,4,"Promoción del programa",1E-3,30]

{"sheet":"1.Ordenar","index":2,"n_rows":60,"n_cols":3,"rows_kept":60,"cut":false,"hidden":false,"merged":[]}
["FACTOR 1.","MISIÓN, PROYECTO INSTITUCIONAL Y DE PROGRAMA ","ORDENE (3 más importante)"]
[1,"Misión y proyecto institucional "]
[2,"Proyecto educativo del programa "]
[3,"Relevancia académica y pertinencia social del programa"]
[null,null,{"$f":"+SUM(C2:C4)","v":0}]
["FACTOR 2.","ESTUDIANTES","ORDENE (4 más importante)"]
[1,"Mecanismos de selección e ingreso"]
[2,"Estudiantes admitidos y capacidad institucional "]
[3,"Participación en actividades de formación integral "]
[4,"Reglamento estudiantil y académico "]
[null,null,{"$f":"+SUM(C7:C10)","v":0}]
["FACTOR 3.","PROFESORES","ORDENE (8 más importante)"]
[1,"Selección, vinculación y permamencia "]
[2,"Estatuto profesoral"]
[3,"Número, dedicación,  nivel de formación y experiencia de los profesores"]
[4,"Desarrollo profesoral"]
[5,"Estímulos a la docencia, investigación, creación artistica y cultural, extensión o proyección social y a la cooperación internacional"]
[6,"Producción, pertinencia, utilización e impacto del material docente"]
[7,"Remuneración por méritos"]
[8,"Evaluación de profesores "]
[null,null,{"$f":"+SUM(C13:C20)","v":0}]
["FACTOR 4.","PROCESOS ACADÉMICOS","ORDENE (11 más importante)"]
[1,"Integralidad del currículo"]
[2,"Flexibilidad del currículo"]
[3,"Interdisciplinariedad"]
[4,"Metodologías de enseñanza y aprendizaje"]
[5,"Sistema de evaluación de estudiantes"]
[6,"Trabajos de los estudiantes"]
[7,"Evaluación y autorregulación del programa"]
[8,"Extensión o proyección social"]
[9,"Recursos bibliográficos"]
[10,"Recursos informáticos y de comunicación"]
[11,"Recursos de apoyo docente"]
[null,null,{"$f":"SUM(C23:C33)","v":0}]
["FACTOR 5.","VISIBILIDAD NACIONAL E INTERNACIONAL ","ORDENE (2 más importante)"]
[1,"Inserción del programa en contextos académicos nacionales e internacionales "]
[2,"Relaciones externas de profesores y estudiantes"]
[null,null,{"$f":"+SUM(C37:C37)","v":0}]
["FACTOR 6.","INVESTIGACIÓN, INNOVACIÓN Y CREACIÓN ARTISTICA Y CULTURAL ","ORDENE (2 más importante)"]
[1,"Formación para la investigación, la innovación y la creación artistica y cultural "]
[2,"Compromiso con la investigación, la innovación y la creación artistica y cultural"]
[null,null,{"$f":"+SUM(C40:C41)","v":0}]
["FACTOR 7.","BIENESTAR INSTITUCIONAL ","ORDENE (2 más importante)"]
[1,"Politicas, programas y servicios de bienestar universitario "]
[2,"Permanencia y retención estudiantil"]
[null,null,{"$f":"SUM(C44:C45)","v":0}]
["FACTOR 8.","ORGANIZACIÓN, ADMINISTRACIÓN Y GESTIÓN ","ORDENE (3 más importante)"]
[1,"Organización, administración y gestión del programa "]
[2,"Sistemas de comunicación e información "]
[3,"Dirección del programa "]
[null,null,{"$f":"SUM(C48:C50)","v":0}]
["FACTOR 9.","IMPACTO DE LOS EGRESADOS EN EL MEDIO ","ORDENE (2 más importante)"]
[1,"Seguimiento de los egresados "]
[2,"Impacto de los egresados en el medio social y académico "]
[null,null,{"$f":"SUM(C53:C54)","v":0}]
["FACTOR 10.","RECURSOS FISICOS Y FINANCIEROS ","ORDENE (3 más importante)"]
[1,"Recursos fisicos "]
[2,"Presupuesto del programa"]
[3,"Administración de recursos "]
[null,null,{"$f":"SUM(C57:C59)","v":0}]

{"sheet":"2.Priorizar","index":3,"n_rows":40,"n_cols":19,"rows_kept":40,"cut":false,"hidden":false,"merged":[[1,1,1,23],[3,1,3,2],[16,1,16,2],[36,1,36,2]]}
[]
[null,"COMPARACION ENTRE FACTORES"]
[]
[null,"FACTORES A EVALUAR",null,"Peso"]
[null,"FACTOR 1","MISI”N, PROYECTO INSTITUCIONAL Y DE PROGRAMA"]
[null,"FACTOR 2","ESTUDIANTES"]
[null,"FACTOR 3","PROFESORES"]
[null,"FACTOR 4","PROCESOS ACADÄMICOS"]
[null,"FACTOR 5","VISIBILIDAD NACIONAL E INTERNACIONAL"]
[null,"FACTOR 6","INVESTIGACI”N, INNOVACI”N Y CREACI”N ART\u0090STICA Y CULTURAL"]
[null,"FACTOR 7","BIENESTAR INSTITUCIONAL"]
[null,"FACTOR 8","ORGANIZACI”N ADMINISTRACI”N Y GESTI”N"]
[null,"FACTOR 9","IMPACTO DE LOS EGRESADOS EN EL MEDIO"]
[null,"FACTOR 10","RECURSOS F\u0090SICOS Y FINANCIEROS"]
[]
[null,null,null,null,null,"FACTOR 1.","FACTOR 2.","FACTOR 3.","FACTOR 4.","FACTOR 5.","FACTOR 6.","FACTOR 7.","FACTOR 8.","FACTOR 9.","FACTOR 10.",null,null,"SUMA","PESO"]
[null,null,null,null,"FACTOR 1.",null,null,null,null,null,null,null,null,null,null,null,"FACTOR 1.",{"$f":"+SUM(F17:O17)","v":0},{"$f":"+R17/$R$27","v":{"$error":"#DIV/0!"}}]
[null,null,null,null,"FACTOR 2.",{"$f":"+IF(G17=3,1,IF(G17=2,2,IF(G17=1,3,\"\")))","v":""},null,null,null,null,null,null,null,null,null,null,"FACTOR 2.",0,{"$error":"#DIV/0!"}]
[null,null,null,null,"FACTOR 3.",{"$f":"+IF(H17=3,1,IF(H17=2,2,IF(H17=1,3,\"\")))","v":""},{"$f":"+IF(H18=3,1,IF(H18=2,2,IF(H18=1,3,\"\")))","v":""},null,null,null,null,null,null,null,null,null,"FACTOR 3.",0,{"$error":"#DIV/0!"}]
[null,null,null,null,"FACTOR 4.",{"$f":"+IF(I17=3,1,IF(I17=2,2,IF(I17=1,3,\"\")))","v":""},{"$f":"+IF(I18=3,1,IF(I18=2,2,IF(I18=1,3,\"\")))","v":""},{"$f":"+IF(I19=3,1,IF(I19=2,2,IF(I19=1,3,\"\")))","v":""},null,null,null,null,null,null,null,null,"FACTOR 4.",0,{"$error":"#DIV/0!"}]
[null,null,null,null,"FACTOR 5.",{"$f":"+IF(J17=3,1,IF(J17=2,2,IF(J17=1,3,\"\")))","v":""},{"$f":"+IF(J18=3,1,IF(J18=2,2,IF(J18=1,3,\"\")))","v":""},{"$f":"+IF(J19=3,1,IF(J19=2,2,IF(J19=1,3,\"\")))","v":""},{"$f":"+IF(J20=3,1,IF(J20=2,2,IF(J20=1,3,\"\")))","v":""},null,null,null,null,null,null,null,"FACTOR 5. ",0,{"$error":"#DIV/0!"}]
[null,null,null,null,"FACTOR 6.",{"$f":"+IF(K17=3,1,IF(K17=2,2,IF(K17=1,3,\"\")))","v":""},{"$f":"+IF(K18=3,1,IF(K18=2,2,IF(K18=1,3,\"\")))","v":""},{"$f":"+IF(K19=3,1,IF(K19=2,2,IF(K19=1,3,\"\")))","v":""},{"$f":"+IF(K20=3,1,IF(K20=2,2,IF(K20=1,3,\"\")))","v":""},{"$f":"+IF(K21=3,1,IF(K21=2,2,IF(K21=1,3,\"\")))","v":""},null,null,null,null,null,null,"FACTOR 6.",0,{"$error":"#DIV/0!"}]
[null,null,null,null,"FACTOR 7.",{"$f":"+IF(L17=3,1,IF(L17=2,2,IF(L17=1,3,\"\")))","v":""},{"$f":"+IF(L18=3,1,IF(L18=2,2,IF(L18=1,3,\"\")))","v":""},{"$f":"+IF(L19=3,1,IF(L19=2,2,IF(L19=1,3,\"\")))","v":""},{"$f":"+IF(L20=3,1,IF(L20=2,2,IF(L20=1,3,\"\")))","v":""},{"$f":"+IF(L21=3,1,IF(L21=2,2,IF(L21=1,3,\"\")))","v":""},{"$f":"+IF(L22=3,1,IF(L22=2,2,IF(L22=1,3,\"\")))","v":""},null,null,null,null,null,"FACTOR 7.",0,{"$error":"#DIV/0!"}]
[null,null,null,null,"FACTOR 8.",{"$f":"+IF(M17=3,1,IF(M17=2,2,IF(M17=1,3,\"\")))","v":""},{"$f":"+IF(M18=3,1,IF(M18=2,2,IF(M18=1,3,\"\")))","v":""},{"$f":"+IF(M19=3,1,IF(M19=2,2,IF(M19=1,3,\"\")))","v":""},{"$f":"+IF(M20=3,1,IF(M20=2,2,IF(M20=1,3,\"\")))","v":""},{"$f":"+IF(M21=3,1,IF(M21=2,2,IF(M21=1,3,\"\")))","v":""},{"$f":"+IF(M22=3,1,IF(M22=2,2,IF(M22=1,3,\"\")))","v":""},{"$f":"+IF(M23=3,1,IF(M23=2,2,IF(M23=1,3,\"\")))","v":""},null,null,null,null,"FACTOR 8.",0,{"$error":"#DIV/0!"}]
[null,null,null,null,"FACTOR 9.",{"$f":"+IF(N17=3,1,IF(N17=2,2,IF(N17=1,3,\"\")))","v":""},{"$f":"+IF(N18=3,1,IF(N18=2,2,IF(N18=1,3,\"\")))","v":""},{"$f":"+IF(N19=3,1,IF(N19=2,2,IF(N19=1,3,\"\")))","v":""},{"$f":"+IF(N20=3,1,IF(N20=2,2,IF(N20=1,3,\"\")))","v":""},{"$f":"+IF(N21=3,1,IF(N21=2,2,IF(N21=1,3,\"\")))","v":""},{"$f":"+IF(N22=3,1,IF(N22=2,2,IF(N22=1,3,\"\")))","v":""},{"$f":"+IF(N23=3,1,IF(N23=2,2,IF(N23=1,3,\"\")))","v":""},{"$f":"+IF(N24=3,1,IF(N24=2,2,IF(N24=1,3,\"\")))","v":""},null,null,null,"FACTOR 9.",0,{"$error":"#DIV/0!"}]
[null,null,null,null,"FACTOR 10.",{"$f":"+IF(O17=3,1,IF(O17=2,2,IF(O17=1,3,\"\")))","v":""},{"$f":"+IF(O18=3,1,IF(O18=2,2,IF(O18=1,3,\"\")))","v":""},{"$f":"+IF(O19=3,1,IF(O19=2,2,IF(O19=1,3,\"\")))","v":""},{"$f":"+IF(O20=3,1,IF(O20=2,2,IF(O20=1,3,\"\")))","v":""},{"$f":"+IF(O21=3,1,IF(O21=2,2,IF(O21=1,3,\"\")))","v":""},{"$f":"+IF(O22=3,1,IF(O22=2,2,IF(O22=1,3,\"\")))","v":""},{"$f":"+IF(O23=3,1,IF(O23=2,2,IF(O23=1,3,\"\")))","v":""},{"$f":"+IF(O24=3,1,IF(O24=2,2,IF(O24=1,3,\"\")))","v":""},{"$f":"+IF(O25=3,1,IF(O25=2,2,IF(O25=1,3,\"\")))","v":""},null,null,"FACTOR 10.",0,{"$error":"#DIV/0!"}]
[null,null,null,null,null,null,null,null,null,null,null,null,null,null,null,null,"TOTAL",{"$f":"+SUM(R17:R26)","v":0},{"$f":"+SUM(S17:S26)","v":{"$error":"#DIV/0!"}}]
[]
[]
[]
[]
[]
[]
[]
[]
[]
[null,"CRITERIOS DE EVALUACIÓN"]
[null,1,"Menos Importante"]
[null,2,"Igualmente Importante"]
[null,3,"Más Importante"]

{"sheet":"3.Resultado","index":4,"n_rows":63,"n_cols":6,"rows_kept":63,"cut":false,"hidden":false,"merged":[]}
[]
[null,null,null,null,"PONDERADO","JUSTIFICACIÓN"]
["FACTOR 1.","MISIÓN, PROYECTO INSISTUCIONAL Y DE PROGRAMA ",{"$f":"+'2.Priorizar'!R17","v":0},{"$f":"+'2.Priorizar'!S17","v":{"$error":"#DIV/0!"}},{"$f":"+C3*100/$C$63","v":{"$error":"#DIV/0!"}}]
[1,"Misión y proyecto institucional",{"$f":"+'1.Ordenar'!C2","v":0},{"$f":"+C4*$D$3/$C$7","v":{"$error":"#DIV/0!"}},{"$f":"+C4*100/$C$7","v":{"$error":"#DIV/0!"}}]
[2,"Proyecto educativo del programa ",{"$f":"+'1.Ordenar'!C3","v":0},{"$f":"+C5*$D$3/$C$7","v":{"$error":"#DIV/0!"}},{"$f":"+C5*100/$C$7","v":{"$error":"#DIV/0!"}}]
[3,"Relevancia académica y pertinencia social del programa",{"$f":"+'1.Ordenar'!C4","v":0},{"$f":"+C6*$D$3/$C$7","v":{"$error":"#DIV/0!"}},{"$f":"+C6*100/$C$7","v":{"$error":"#DIV/0!"}}]
[null,null,{"$f":"+SUM(C4:C6)","v":0},{"$f":"SUM(D4:D6)","v":{"$error":"#DIV/0!"}},{"$f":"SUM(E4:E6)","v":{"$error":"#DIV/0!"}}]
["FACTOR 2.","ESTUDIANTES",{"$f":"+'2.Priorizar'!R18","v":0},{"$f":"+'2.Priorizar'!S18","v":{"$error":"#DIV/0!"}},{"$f":"+C8*100/$C$63","v":{"$error":"#DIV/0!"}}]
[1,"Mecanismos de ingreso",{"$f":"+'1.Ordenar'!C7","v":0},{"$f":"+C9*$D$8/'3.Resultado'!$C$13","v":{"$error":"#DIV/0!"}},{"$f":"+C9*100/$C$13","v":{"$error":"#DIV/0!"}}]
[2,"Estudiantes admitidos y capacidad institucional ",{"$f":"+'1.Ordenar'!C8","v":0},{"$f":"+C10*$D$8/'3.Resultado'!$C$13","v":{"$error":"#DIV/0!"}},{"$f":"+C10*100/$C$13","v":{"$error":"#DIV/0!"}}]
[3,"Participación en actividades de formación integral ",{"$f":"+'1.Ordenar'!C9","v":0},{"$f":"+C11*$D$8/'3.Resultado'!$C$13","v":{"$error":"#DIV/0!"}},{"$error":"#DIV/0!"}]
[4,"Reglamento estudiantil y académico ",{"$f":"+'1.Ordenar'!C10","v":0},{"$f":"+C12*$D$8/'3.Resultado'!$C$13","v":{"$error":"#DIV/0!"}},{"$error":"#DIV/0!"}]
[null,null,{"$f":"+SUM(C9:C12)","v":0},{"$f":"+SUM(D9:D12)","v":{"$error":"#DIV/0!"}},{"$f":"SUM(E9:E12)","v":{"$error":"#DIV/0!"}}]
["FACTOR 3.","PROFESORES",{"$f":"+'2.Priorizar'!R19","v":0},{"$f":"+'2.Priorizar'!S19","v":{"$error":"#DIV/0!"}},{"$f":"+C14*100/$C$63","v":{"$error":"#DIV/0!"}}]
[1,"Selección, vinculación y permanencia de profesores",{"$f":"+'1.Ordenar'!C13","v":0},{"$f":"+C15*$D$14/'3.Resultado'!$C$23","v":{"$error":"#DIV/0!"}},{"$f":"+C15*100/$C$23","v":{"$error":"#DIV/0!"}}]
[2,"Estatuto profesoral",{"$f":"+'1.Ordenar'!C14","v":0},{"$f":"+C16*$D$14/'3.Resultado'!$C$23","v":{"$error":"#DIV/0!"}},{"$error":"#DIV/0!"}]
[3,"Número, dedicación,  nivel de formación y experiencia de los los profesores ",{"$f":"+'1.Ordenar'!C15","v":0},{"$f":"+C17*$D$14/'3.Resultado'!$C$23","v":{"$error":"#DIV/0!"}},{"$error":"#DIV/0!"}]
[4,"Desarrollo profesoral",{"$f":"+'1.Ordenar'!C16","v":0},{"$f":"+C18*$D$14/'3.Resultado'!$C$23","v":{"$error":"#DIV/0!"}},{"$error":"#DIV/0!"}]
[5,"Estímulos a la docencia, investigación, creación artisitca y cultural, extensión o proyección social y a la cooperación internacional",{"$f":"+'1.Ordenar'!C17","v":0},{"$f":"+C19*$D$14/'3.Resultado'!$C$23","v":{"$error":"#DIV/0!"}},{"$error":"#DIV/0!"}]
[6,"Producción , pertinencia, utilización e impacto del material docente ",{"$f":"+'1.Ordenar'!C18","v":0},{"$f":"+C20*$D$14/'3.Resultado'!$C$23","v":{"$error":"#DIV/0!"}},{"$error":"#DIV/0!"}]
[7,"Remuneración por meritos ",{"$f":"+'1.Ordenar'!C19","v":0},{"$f":"+C21*$D$14/'3.Resultado'!$C$23","v":{"$error":"#DIV/0!"}},{"$error":"#DIV/0!"}]
[8,"Evaluación de profesores ",{"$f":"+'1.Ordenar'!C20","v":0},{"$f":"+C22*$D$14/'3.Resultado'!$C$23","v":{"$error":"#DIV/0!"}},{"$error":"#DIV/0!"}]
[null,null,{"$f":"+SUM(C15:C22)","v":0},{"$f":"SUM(D15:D22)","v":{"$error":"#DIV/0!"}},{"$f":"SUM(E15:E22)","v":{"$error":"#DIV/0!"}}]
["FACTOR 4.","PROCESOS ACADÉMICOS",{"$f":"+'2.Priorizar'!R20","v":0},{"$f":"+'2.Priorizar'!S20","v":{"$error":"#DIV/0!"}},{"$f":"+C24*100/C63","v":{"$error":"#DIV/0!"}}]
[1,"Integralidad del Currículo",{"$f":"+'1.Ordenar'!C23","v":0},{"$f":"+C25*$D$24/$C$36","v":{"$error":"#DIV/0!"}},{"$f":"+C25*100/$C$36","v":{"$error":"#DIV/0!"}}]
[2,"Flexibilidad del currículo",{"$f":"+'1.Ordenar'!C24","v":0},{"$f":"+C26*$D$24/$C$36","v":{"$error":"#DIV/0!"}},{"$f":"+C26*100/$C$36","v":{"$error":"#DIV/0!"}}]
[3,"Interdisciplinariedad",{"$f":"+'1.Ordenar'!C25","v":0},{"$f":"+C27*$D$24/$C$36","v":{"$error":"#DIV/0!"}},{"$error":"#DIV/0!"}]
[4,"Metodologías de enseñanza y aprendizaje",{"$f":"+'1.Ordenar'!C26","v":0},{"$error":"#DIV/0!"},{"$error":"#DIV/0!"}]
[5,"Sistema de evaluación de estudiantes",{"$f":"+'1.Ordenar'!C27","v":0},{"$error":"#DIV/0!"},{"$error":"#DIV/0!"}]
[6,"Trabajos de los estudiantes",{"$f":"+'1.Ordenar'!C28","v":0},{"$error":"#DIV/0!"},{"$error":"#DIV/0!"}]
[7,"Evaluación y autorregulación del programa",{"$f":"+'1.Ordenar'!C29","v":0},{"$error":"#DIV/0!"},{"$error":"#DIV/0!"}]
[8,"Extensión o proyección social",{"$f":"+'1.Ordenar'!C30","v":0},{"$error":"#DIV/0!"},{"$error":"#DIV/0!"}]
[9,"Recursos bibliográficos",{"$f":"+'1.Ordenar'!C31","v":0},{"$error":"#DIV/0!"},{"$error":"#DIV/0!"}]
[10,"Recursos informáticos y de comunicación",{"$f":"+'1.Ordenar'!C32","v":0},{"$error":"#DIV/0!"},{"$error":"#DIV/0!"}]
[11,"Recursos de apoyo docente",{"$f":"+'1.Ordenar'!C33","v":0},{"$error":"#DIV/0!"},{"$error":"#DIV/0!"}]
[null,null,{"$f":"+SUM(C25:C35)","v":0},{"$f":"SUM(D25:D35)","v":{"$error":"#DIV/0!"}},{"$f":"SUM(E25:E35)","v":{"$error":"#DIV/0!"}}]
["FACTOR 5.","VISIBILIDAD NACIONAL E INTERNACIONAL ",{"$f":"+'2.Priorizar'!R21","v":0},{"$f":"+'2.Priorizar'!S21","v":{"$error":"#DIV/0!"}},{"$f":"+C37*100/C63","v":{"$error":"#DIV/0!"}}]
[1,"Inserción del programa en contextos nacionales e internacionales ",{"$f":"+'1.Ordenar'!C37","v":0},{"$f":"+C38*$D$37/$C$40","v":{"$error":"#DIV/0!"}},{"$f":"+C38*100/$C$40","v":{"$error":"#DIV/0!"}}]
[2,"Relaciones externas de profesores y estudiantes",{"$f":"+'1.Ordenar'!C38","v":0},{"$f":"+C39*$D$37/$C$40","v":{"$error":"#DIV/0!"}},{"$f":"+C39*100/$C$40","v":{"$error":"#DIV/0!"}}]
[null,null,{"$f":"+SUM(C38:C39)","v":0},{"$f":"SUM(D38:D39)","v":{"$error":"#DIV/0!"}},{"$f":"SUM(E38:E39)","v":{"$error":"#DIV/0!"}}]
["FACTOR 6.","INVESTIGACIÓN, INNOVACIÓN Y CREACIÓN ARTISTICA Y CULTURAL ",{"$f":"+'2.Priorizar'!R22","v":0},{"$f":"+'2.Priorizar'!S22","v":{"$error":"#DIV/0!"}},{"$f":"+C41*100/C63","v":{"$error":"#DIV/0!"}}]
[1,"Formación para la investigación, la innovación y la creación artistica y cultural ",{"$f":"+'1.Ordenar'!C40","v":0},{"$f":"+C42*$D$41/$C$44","v":{"$error":"#DIV/0!"}},{"$f":"+C42*100/$C$44","v":{"$error":"#DIV/0!"}}]
[2,"Compromiso con la investigación, la innovación y la creación artistica y cultural ",{"$f":"+'1.Ordenar'!C41","v":0},{"$f":"+C43*$D$41/$C$44","v":{"$error":"#DIV/0!"}},{"$f":"+C43*100/$C$44","v":{"$error":"#DIV/0!"}}]
[null,null,{"$f":"SUM(C42:C43)","v":0},{"$f":"SUM(D42:D43)","v":{"$error":"#DIV/0!"}},{"$f":"SUM(E42:E43)","v":{"$error":"#DIV/0!"}}]
["FACTOR 7.","BIENESTAR INSTITUCIONAL ",{"$f":"+'2.Priorizar'!R23","v":0},{"$f":"+'2.Priorizar'!S23","v":{"$error":"#DIV/0!"}},{"$f":"+C45*100/C63","v":{"$error":"#DIV/0!"}}]
[1,"Politicas, programas y sevicios de bienestar universitario ",{"$f":"+'1.Ordenar'!C44","v":0},{"$f":"+C46*$D$45/$C$48","v":{"$error":"#DIV/0!"}},{"$f":"+C46*100/$C$48","v":{"$error":"#DIV/0!"}}]
[2,"Permanencia y retención estudiantil",{"$f":"+'1.Ordenar'!C45","v":0},{"$f":"+C47*$D$45/$C$48","v":{"$error":"#DIV/0!"}},{"$f":"+C47*100/$C$48","v":{"$error":"#DIV/0!"}}]
[null,null,{"$f":"SUM(C46:C47)","v":0},{"$f":"SUM(D46:D47)","v":{"$error":"#DIV/0!"}},{"$f":"SUM(E46:E47)","v":{"$error":"#DIV/0!"}}]
["FACTOR 8.","ORGANIZACIÓN, ADMINISTRACIÓN Y GESTIÓN ",{"$f":"+'2.Priorizar'!R24","v":0},{"$f":"+'2.Priorizar'!S24","v":{"$error":"#DIV/0!"}},{"$f":"+C49*100/C63","v":{"$error":"#DIV/0!"}}]
[1,"Organización, administración y gestión del programa ",{"$f":"+'1.Ordenar'!C48","v":0},{"$f":"+C50*$D$49/$C$53","v":{"$error":"#DIV/0!"}},{"$f":"+C50*100/$C$53","v":{"$error":"#DIV/0!"}}]
[2,"Sistemas de comunicación e información ",{"$f":"+'1.Ordenar'!C49","v":0},{"$f":"+C51*$D$49/$C$53","v":{"$error":"#DIV/0!"}},{"$f":"+C51*100/$C$53","v":{"$error":"#DIV/0!"}}]
[3,"Dirección del programa  ",{"$f":"+'1.Ordenar'!C50","v":0},{"$error":"#DIV/0!"},{"$error":"#DIV/0!"}]
[null,null,{"$f":"SUM(C50:C52)","v":0},{"$f":"SUM(D50:D52)","v":{"$error":"#DIV/0!"}},{"$f":"SUM(E50:E52)","v":{"$error":"#DIV/0!"}}]
["FACTOR 9.","IMPACTO DE LOS EGRESADOS EN EL MEDIO ",{"$f":"+'2.Priorizar'!R25","v":0},{"$f":"+'2.Priorizar'!S25","v":{"$error":"#DIV/0!"}},{"$f":"+C54*100/C63","v":{"$error":"#DIV/0!"}}]
[1,"Seguimiento  de los egresados ",{"$f":"+'1.Ordenar'!C53","v":0},{"$f":"+C55*$D$54/$C$57","v":{"$error":"#DIV/0!"}},{"$f":"+C55*100/$C$57","v":{"$error":"#DIV/0!"}}]
[2,"Impacto de los egresados en el medio social y académico ",{"$f":"+'1.Ordenar'!C54","v":0},{"$f":"+C56*$D$54/$C$57","v":{"$error":"#DIV/0!"}},{"$f":"+C56*100/$C$57","v":{"$error":"#DIV/0!"}}]
[null,null,{"$f":"SUM(C55:C56)","v":0},{"$f":"SUM(D55:D56)","v":{"$error":"#DIV/0!"}},{"$f":"SUM(E55:E56)","v":{"$error":"#DIV/0!"}}]
["FACTOR 10.","RECURSOS FISICOS Y FINANCIEROS ",{"$f":"+'2.Priorizar'!R26","v":0},{"$f":"+'2.Priorizar'!S26","v":{"$error":"#DIV/0!"}},{"$f":"+C58*100/C63","v":{"$error":"#DIV/0!"}}]
[1,"Recursos fisicos ",{"$f":"+'1.Ordenar'!C57","v":0},{"$f":"+C59*$D$58/$C$62","v":{"$error":"#DIV/0!"}},{"$f":"+C59*100/$C$62","v":{"$error":"#DIV/0!"}}]
[2,"Presupuesto del programa ",{"$f":"+'1.Ordenar'!C58","v":0},{"$f":"+C60*$D$58/$C$62","v":{"$error":"#DIV/0!"}},{"$f":"+C60*100/$C$62","v":{"$error":"#DIV/0!"}}]
[3,"Administración de recursos",{"$f":"+'1.Ordenar'!C59","v":0},{"$error":"#DIV/0!"},{"$error":"#DIV/0!"}]
[null,null,{"$f":"SUM(C59:C61)","v":0},{"$f":"SUM(D59:D61)","v":{"$error":"#DIV/0!"}},{"$f":"SUM(E59:E61)","v":{"$error":"#DIV/0!"}}]
[null,null,{"$f":"+'2.Priorizar'!R27","v":0},{"$f":"SUM(D58+D54+D49+D45+D41+D37+D24+D14+D8+D3)","v":{"$error":"#DIV/0!"}}]

{"sheet":"4. Emisión de Juicios","index":5,"n_rows":309,"n_cols":17,"rows_kept":309,"cut":false,"hidden":false,"merged":[[269,2,269,7],[269,9,269,16],[270,0,270,7],[255,2,263,2],[255,3,263,3],[255,4,263,4],[264,2,264,7],[264,9,264,16],[265,2,268,2],[265,3,268,3],[265,4,268,4],[247,0,269,0],[247,1,269,1],[247,2,253,2],[247,3,253,3],[247,4,253,4],[254,2,254,7],[254,9,254,16],[307,0,307,7],[291,2,291,7],[291,9,291,16],[292,2,299,2],[292,3,299,3],[292,4,299,4],[300,2,300,7],[300,9,300,16],[284,9,284,16],[284,2,284,7],[285,0,285,7],[286,0,306,0],[286,1,306,1],[286,2,290,2],[286,3,290,3],[286,4,290,4],[301,2,305,2],[301,3,305,3],[301,4,305,4],[306,2,306,7],[306,9,306,16],[279,9,279,16],[280,2,283,2],[280,3,283,3],[280,4,283,4],[271,0,284,0],[271,1,284,1],[271,2,278,2],[271,3,278,3],[271,4,278,4],[279,2,279,7],[241,9,241,16],[242,2,244,2],[242,3,244,3],[242,4,244,4],[245,2,245,7],[245,9,245,16],[246,0,246,7],[231,0,231,7],[232,0,245,0],[232,1,245,1],[232,2,240,2],[232,3,240,3],[232,4,240,4],[241,2,241,7],[222,3,229,3],[222,4,229,4],[230,2,230,7],[230,9,230,16],[199,9,199,16],[210,0,230,0],[210,1,230,1],[210,2,220,2],[210,3,220,3],[210,4,220,4],[221,2,221,7],[221,9,221,16],[222,2,229,2],[208,9,208,16],[209,0,209,7],[190,0,208,0],[190,1,208,1],[200,2,207,2],[200,3,207,3],[200,4,207,4],[208,2,208,7],[190,2,198,2],[190,3,198,3],[190,4,198,4],[199,2,199,7],[189,0,189,7],[182,2,187,2],[182,3,187,3],[182,4,187,4],[188,2,188,7],[101,0,188,0],[101,1,188,1],[101,2,110,2],[101,3,110,3],[101,4,110,4],[154,2,154,7],[188,9,188,16],[174,2,174,7],[174,9,174,16],[175,2,180,2],[175,3,180,3],[175,4,180,4],[181,2,181,7],[181,9,181,16],[160,2,167,2],[160,3,167,3],[160,4,167,4],[168,2,168,7],[168,9,168,16],[169,2,173,2],[169,3,173,3],[169,4,173,4],[154,9,154,16],[155,2,158,2],[155,3,158,3],[155,4,158,4],[159,2,159,7],[159,9,159,16],[142,2,147,2],[142,3,147,3],[142,4,147,4],[148,2,148,7],[148,9,148,16],[149,2,153,2],[149,3,153,3],[149,4,153,4],[126,9,126,16],[127,2,140,2],[127,3,140,3],[127,4,140,4],[141,2,141,7],[141,9,141,16],[111,9,111,16],[112,2,121,2],[112,3,121,3],[112,4,121,4],[122,2,122,7],[122,9,122,16],[111,2,111,7],[123,2,125,2],[123,3,125,3],[123,4,125,4],[126,2,126,7],[99,2,99,7],[99,9,99,16],[100,0,100,7],[89,2,89,7],[89,9,89,16],[90,2,92,2],[90,3,92,3],[90,4,92,4],[93,2,93,7],[93,9,93,16],[73,9,73,16],[74,2,79,2],[74,3,79,3],[74,4,79,4],[80,2,80,7],[80,9,80,16],[94,2,98,2],[94,3,98,3],[94,4,98,4],[57,9,57,16],[58,2,63,2],[58,3,63,3],[58,4,63,4],[64,2,64,7],[64,9,64,16],[54,0,99,0],[54,1,99,1],[54,2,56,2],[54,3,56,3],[54,4,56,4],[57,2,57,7],[65,2,72,2],[65,3,72,3],[65,4,72,4],[73,2,73,7],[81,2,83,2],[81,3,83,3],[81,4,83,4],[84,2,84,7],[84,9,84,16],[85,2,88,2],[85,3,88,3],[85,4,88,4],[53,0,53,7],[46,2,46,7],[46,9,46,16],[47,2,51,2],[47,3,51,3],[47,4,51,4],[52,2,52,7],[52,9,52,16],[34,9,34,16],[35,2,41,2],[35,3,41,3],[35,4,41,4],[42,2,42,7],[42,9,42,16],[29,0,29,7],[30,0,52,0],[30,1,52,1],[30,2,33,2],[30,3,33,3],[30,4,33,4],[34,2,34,7],[43,2,45,2],[43,3,45,3],[43,4,45,4],[28,9,28,16],[13,9,13,16],[14,2,17,2],[14,3,17,3],[14,4,17,4],[18,2,18,7],[18,9,18,16],[7,0,28,0],[7,1,28,1],[7,2,12,2],[7,3,12,3],[7,4,12,4],[13,2,13,7],[19,2,27,2],[19,3,27,3],[19,4,27,4],[28,2,28,7],[5,6,6,6],[5,7,6,7],[5,8,6,8],[5,9,6,9],[5,10,5,15],[5,16,6,16],[1,0,1,16],[2,0,2,16],[3,0,3,16],[5,0,6,0],[5,1,6,1],[5,2,6,2],[5,3,6,3],[5,4,6,4],[5,5,6,5]]}
[]
[]
[]
["MATRIZ DE EMISIÓN DE JUICIOS"]
[]
["FACTOR","PONDERACIÓN\n/ FACTOR","CARACTERISTICA","PONDERACIÓN \n/ CARACTERÍSTICA",null,"ASPECTO A EVALUAR ","PONDERACIÓN / ASPECTO A EVALUAR ","GRADACIÓN CUMPLIMIENTO APECTO A EVALUAR","CALIFICACIÓN PONDERADA POR ASPECTO","MEDIO VERIFICACIÓN","FUENTE    ENCUESTA",null,null,null,null,null,"ENUNCIADO"]
[null,null,null,null,"NRO. INDICADORES POR CARACTERÍSTICA",null,null,null,null,null,"ESTUDIANTES","PROFESORES","ADMINISTRATIVOS","DIRECTIVOS","EGRESADOS","EMPLEADORES"]
["FACTOR 1",{"$f":"+'3.Resultado'!E3","v":{"$error":"#DIV/0!"}},"CARACTERÍSTICA 1 ",{"$f":"+'3.Resultado'!E4","v":{"$error":"#DIV/0!"}},6,1,{"$f":"+D8/E8","v":{"$error":"#DIV/0!"}},null,{"$f":"G8*H8","v":{"$error":"#DIV/0!"}},"ENCUESTA ","X","X","X","X","X","X","a) Apropiación de la visión y la misión institucional por parte de la comunidad académica."]
[null,null,null,null,null,{"$f":"+F8+1","v":2},{"$f":"G8","v":{"$error":"#DIV/0!"}},null,{"$f":"G9*H9","v":{"$error":"#DIV/0!"}},"OTRO",null,null,null,null,null,null,"b) Correspondencia entre la visión y la misión institucional y los objetivos del programa académico. "]
[null,null,null,null,null,3,{"$f":"G8","v":{"$error":"#DIV/0!"}},null,{"$error":"#DIV/0!"},"OTRO",null,null,null,null,null,null,"c) El proyecto institucional orienta las acciones y decisiones del programa académico, en la gestión del currículo, la docencia, la investigación científica, la creación artística, la internacionalización, la proyección social, el bienestar de la comunidad institucional y demás áreas estratégicas de la institución. "]
[null,null,null,null,null,4,{"$f":"G8","v":{"$error":"#DIV/0!"}},null,{"$error":"#DIV/0!"},"OTRO",null,null,null,null,null,null,"d) La institución cuenta con una política eficaz y tiene evidencias sobre alternativas de financiación para facilitar el ingreso y permanencia de los estudiantes que evidencian dificultades económicas."]
[null,null,null,null,null,5,{"$f":"G8","v":{"$error":"#DIV/0!"}},null,{"$error":"#DIV/0!"},"OTRO",null,null,null,null,null,null,"e) La institución aplica una política eficaz que permite el acceso a la educación superior sin discriminación. Promueve estrategias eficaces orientadas a identificar, eliminar o disminuir barreras comunicativas para poblaciones diversas. "]
[null,null,null,null,null,6,{"$f":"G8","v":{"$error":"#DIV/0!"}},null,{"$error":"#DIV/0!"},"OTRO",null,null,null,null,null,null,"f) La institución cuenta con una política eficaz orientada a identificar, eliminar o disminuir barreras en infraestructura física. La institución tiene evidencias sobre la aplicación de esta política."]
[null,null,"CALIFICACIÓN CARACTERÍSTICA 1",null,null,null,null,null,{"$f":"(SUM(I8:I13))/D8","v":{"$error":"#DIV/0!"}}]
[null,null,"CARACTERÍSTICA 2",{"$f":"+'3.Resultado'!E5","v":{"$error":"#DIV/0!"}},4,1,{"$f":"+D15/E15","v":{"$error":"#DIV/0!"}},null,{"$f":"G15*H15","v":{"$error":"#DIV/0!"}},"OTRO",null,null,null,null,null,null,"a) Estrategias y mecanismos establecidos para la discusión, actualización y difusión del Proyecto Educativo del Programa académico.   "]
[null,null,null,null,null,2,{"$f":"G15","v":{"$error":"#DIV/0!"}},null,{"$f":"G16*H16","v":{"$error":"#DIV/0!"}},"ENCUESTA ","X","X","X","X","X","X","b) Apropiación del Proyecto Educativo del Programa por parte de la comunidad académica del programa."]
[null,null,null,null,null,3,{"$f":"G15","v":{"$error":"#DIV/0!"}},null,{"$error":"#DIV/0!"},"OTRO",null,null,null,null,null,null,"c) Modelo pedagógico o concepción de aprendizaje que sustentan la metodología de enseñanza en que se ofrece el programa evaluado."]
[null,null,null,null,null,4,{"$f":"G15","v":{"$error":"#DIV/0!"}},null,{"$f":"G18*H18","v":{"$error":"#DIV/0!"}},"OTRO",null,null,null,null,null,null,"d) Coherencia entre el Proyecto Educativo del Programa y las actividades académicas desarrolladas."]
[null,null,"CALIFICACIÓN CARACTERÍSTICA 2",null,null,null,null,null,{"$f":"(SUM(I15:I18))/D15","v":{"$error":"#DIV/0!"}}]
[null,null,"CARACTERÍSTICA 3",{"$f":"+'3.Resultado'!E6","v":{"$error":"#DIV/0!"}},9,1,{"$f":"+D20/E20","v":{"$error":"#DIV/0!"}},null,{"$f":"G20*H20","v":{"$error":"#DIV/0!"}},"OTRO",null,null,null,null,null,null,"a) Análisis realizados sobre las tendencias y líneas de desarrollo de la disciplina o profesión en el ámbito local, regional, nacional e internacional, y su incidencia en el programa."]
[null,null,null,null,null,2,{"$f":"G20","v":{"$error":"#DIV/0!"}},null,{"$f":"G21*H21","v":{"$error":"#DIV/0!"}},"OTRO",null,null,null,null,null,null,"b) Estudios orientados a identificar las necesidades y requerimientos del entorno laboral (local, regional y nacional) en términos productivos y de competitividad,"]
[null,null,null,null,null,3,{"$f":"G20","v":{"$error":"#DIV/0!"}},null,{"$error":"#DIV/0!"},"OTRO",null,null,null,null,null,null,"c) Estudios que demuestren la necesidad social del programa en la metodología que se ofrece."]
[null,null,null,null,null,4,{"$f":"G20","v":{"$error":"#DIV/0!"}},null,{"$error":"#DIV/0!"},"OTRO",null,null,null,null,null,null,"d) Correspondencia entre el perfil laboral y ocupacional del sector y el perfil profesional expresado en el Proyecto Educativo del Programa."]
[null,null,null,null,null,5,{"$f":"G20","v":{"$error":"#DIV/0!"}},null,{"$error":"#DIV/0!"},"OTRO",null,null,null,null,null,null,"e) Estudios y/o proyectos formulados o en desarrollo, que propendan por la modernización, actualización y pertinencia del currículo de acuerdo con las necesidades del entorno."]
[null,null,null,null,null,6,{"$f":"G20","v":{"$error":"#DIV/0!"}},null,{"$error":"#DIV/0!"},"OTRO",null,null,null,null,null,null,"f) Estudios actualizados sobre las necesidades formativas en la región de influencia del programa."]
[null,null,null,null,null,7,{"$f":"G20","v":{"$error":"#DIV/0!"}},null,{"$error":"#DIV/0!"},"OTRO",null,null,null,null,null,null,"g) Cambios en el plan de estudios, resultantes de experiencias relativas al análisis y propuestas de solución a los problemas del contexto."]
[null,null,null,null,null,8,{"$f":"G20","v":{"$error":"#DIV/0!"}},null,{"$error":"#DIV/0!"},"OTRO",null,null,null,null,null,null,"h) Proyectos que adelanta el programa, mediante sus funciones de docencia, investigación, innovación, creación artística y cultural, y extensión tendientes a ejercer un impacto sobre el medio, de acuerdo con el Proyecto Educativo del Programa."]
[null,null,null,null,null,9,{"$f":"G20","v":{"$error":"#DIV/0!"}},null,{"$error":"#DIV/0!"},"OTRO",null,null,null,null,null,null,"i) Estudios orientados a evaluar el impacto del programa con respecto al cumplimiento de sus propósitos y objetivos, así como la incidencia en el entorno social y su grupo de referencia disciplinar o profesional."]
[null,null,"CALIFICACIÓN CARACTERÍSTICA 3",null,null,null,null,null,{"$f":"(SUM(I20:I28))/D20","v":{"$error":"#DIV/0!"}}]
["CALIFICACIÓN FACTOR 1",null,null,null,null,null,null,null,{"$f":"(I29*D20+I19*D15+I14*D8)/100","v":{"$error":"#DIV/0!"}}]
["FACTOR 2",{"$f":"+'3.Resultado'!E8","v":{"$error":"#DIV/0!"}},"CARACTERÍSTICA 4",{"$f":"+'3.Resultado'!E9","v":{"$error":"#DIV/0!"}},4,1,{"$f":"+D31/E31","v":{"$error":"#DIV/0!"}},null,{"$error":"#DIV/0!"},"OTRO",null,null,null,null,null,null,"a) Mecanismos de ingreso que garanticen transparencia en la selección de los estudiantes."]
[null,null,null,null,null,2,{"$f":"G31","v":{"$error":"#DIV/0!"}},null,{"$f":"G32*H32","v":{"$error":"#DIV/0!"}},"OTRO",null,null,null,null,null,null,"b) Estudiantes que ingresaron mediante la aplicación de reglas generales y mecanismos de admisión excepcionales, en los últimos cinco años."]
[null,null,null,null,null,3,{"$f":"G31","v":{"$error":"#DIV/0!"}},null,{"$error":"#DIV/0!"},"OTRO",null,null,null,null,null,null,"c) Existencia y utilización de sistemas y mecanismos de evaluación de los procesos de selección y admisión, y aplicación de los resultados de dicha evaluación."]
[null,null,null,null,null,4,{"$f":"G31","v":{"$error":"#DIV/0!"}},null,{"$error":"#DIV/0!"},"OTRO",null,null,null,null,null,null,"d) Requerimientos para el ingreso de estudiantes en condición de transferencia, homologación u otro proceso que amerite criterios específicos para el tránsito entre ciclos, niveles y/o instituciones. Beneficios de estos requerimientos en la formación integral de los estudiantes."]
[null,null,"CALIFICACIÓN CARACTERÍSTICA 4",null,null,null,null,null,{"$f":"(SUM(I31:I34))/D31","v":{"$error":"#DIV/0!"}}]
[null,null,"CARACTERÍSTICA 5",{"$f":"+'3.Resultado'!E10","v":{"$error":"#DIV/0!"}},7,1,{"$f":"+D36/E36","v":{"$error":"#DIV/0!"}},null,{"$f":"G36*H36","v":{"$error":"#DIV/0!"}},"OTRO",null,null,null,null,null,null,"a) Políticas institucionales para la definición del número de estudiantes que se admiten al programa, acorde con el cuerpo docente, los recursos físicos y de apoyo académico disponibles."]
[null,null,null,null,null,2,{"$f":"G36","v":{"$error":"#DIV/0!"}},null,{"$f":"G37*H37","v":{"$error":"#DIV/0!"}},"ENCUESTA ","X","X",null,null,null,null,"b) Apreciación de profesores y estudiantes del programa con respecto a la relación entre el número de admitidos, el cuerpo docente y los recursos académicos y físicos disponibles."]
[null,null,null,null,null,3,{"$f":"G36","v":{"$error":"#DIV/0!"}},null,{"$error":"#DIV/0!"},"OTRO",null,null,null,null,null,null,"c) Población de estudiantes que ingreso al programa en los últimos cinco años, el puntaje promedio obtenido por los admitidos en las Pruebas de Estado, el puntaje promedio estandarizado en pruebas de admisión cuando éstas se realicen, el puntaje mínimo aceptable para ingresar y la capacidad de selección y absorción de estudiantes por parte del programa (relación entre inscritos y admitidos, relación entre inscritos y matriculados)."]
[null,null,null,null,null,4,{"$f":"G36","v":{"$error":"#DIV/0!"}},null,{"$error":"#DIV/0!"},"OTRO",null,null,null,null,null,null,"d) En los programas de salud, donde sea pertinente, evidenciar la utilización de escenarios de práctica requeridos para cumplir con los objetivos del programa."]
[null,null,null,null,null,5,{"$f":"G36","v":{"$error":"#DIV/0!"}},null,{"$error":"#DIV/0!"},"OTRO",null,null,null,null,null,null,"e) Evidenciar que los convenios de docencia – servicio se realizan a largo plazo y con IPS acreditadas o con Hospitales Universitarios y en ellos la dinámica interinstitucional denota equilibrio y reciprocidad."]
[null,null,null,null,null,6,{"$f":"G36","v":{"$error":"#DIV/0!"}},null,{"$error":"#DIV/0!"},"OTRO",null,null,null,null,null,null,"f) En los programas de salud, donde sea pertinente, evidenciar que la relación entre el número de estudiantes y la capacidad instalada de los escenarios de práctica (camas, docentes, tutores, investigadores, entre otros) es adecuada y suficiente."]
[null,null,null,null,null,7,{"$f":"G36","v":{"$error":"#DIV/0!"}},null,{"$error":"#DIV/0!"},"OTRO",null,null,null,null,null,null,"g) En los programas de salud, donde sea pertinente, evidenciar adecuadas rotaciones y entrenamiento médico. Los profesores-médicos que tienen a cargo los programas de docencia de servicio cuentan con el nivel de formación adecuado y la experiencia requerida."]
[null,null,"CALIFICACIÓN CARACTERÍSTICA 5",null,null,null,null,null,{"$f":"(SUM(I36:I42))/D36","v":{"$error":"#DIV/0!"}}]
[null,null,"CARACTERÍSTICA 6",{"$f":"+'3.Resultado'!E11","v":{"$error":"#DIV/0!"}},3,1,{"$f":"+D44/E44","v":{"$error":"#DIV/0!"}},null,{"$f":"G44*H44","v":{"$error":"#DIV/0!"}},"OTRO",null,null,null,null,null,null,"a) Políticas y estrategias definidas por el programa en materia de formación integral de los estudiantes."]
[null,null,null,null,null,2,{"$f":"G44","v":{"$error":"#DIV/0!"}},null,{"$f":"G45*H45","v":{"$error":"#DIV/0!"}},"ENCUESTA ","X",null,null,null,null,null,"b) Apreciación de los estudiantes sobre la calidad de los espacios y estrategias que ofrece el programa, de acuerdo con la naturaleza y orientación de éste, para la participación en grupos o centros de estudio, proyectos de experimentación o de desarrollo empresarial y demás actividades académicas y culturales distintas de la docencia que contribuyan a su formación integral."]
[null,null,null,null,null,3,{"$f":"G44","v":{"$error":"#DIV/0!"}},null,{"$error":"#DIV/0!"},"OTRO",null,null,null,null,null,null,"c) Estudiantes que participan efectivamente en grupos o centros de estudio, proyectos de experimentación o de desarrollo empresarial o en las demás actividades académicas y culturales distintas de la docencia que brinda la institución o el programa para contribuir a la formación integral."]
[null,null,"CALIFICACIÓN CARACTERÍSTICA 6",null,null,null,null,null,{"$f":"(SUM(I44:I46))/D44","v":{"$error":"#DIV/0!"}}]
[null,null,"CARACTERÍSTICA 7",{"$f":"+'3.Resultado'!E12","v":{"$error":"#DIV/0!"}},5,1,{"$f":"+D48/E48","v":{"$error":"#DIV/0!"}},null,{"$f":"G48*H48","v":{"$error":"#DIV/0!"}},"OTRO",null,null,null,null,null,null,"a) Mecanismos utilizados para la divulgación del reglamento estudiantil y académico."]
[null,null,null,null,null,2,{"$f":"G48","v":{"$error":"#DIV/0!"}},null,{"$f":"G49*H49","v":{"$error":"#DIV/0!"}},"ENCUESTA ","X","X",null,null,null,null,"b) Apreciación de estudiantes y profesores del programa sobre la pertinencia, vigencia y aplicación del reglamento estudiantil y académico."]
[null,null,null,null,null,{"$f":"+F49+1","v":3},{"$f":"G48","v":{"$error":"#DIV/0!"}},null,{"$error":"#DIV/0!"},"OTRO",null,null,null,null,null,null,"c) Evidencias sobre la aplicación de las normas establecidas en los reglamentos estudiantil y académico para atender las situaciones presentadas con los estudiantes."]
[null,null,null,null,null,4,{"$f":"G48","v":{"$error":"#DIV/0!"}},null,{"$error":"#DIV/0!"},"ENCUESTA ","X","X",null,"X",null,null,"d) Apreciación de directivos, profesores y estudiantes sobre la participación del estudiantado en los órganos de dirección del programa."]
[null,null,null,null,null,5,{"$f":"G48","v":{"$error":"#DIV/0!"}},null,{"$error":"#DIV/0!"},"OTRO",null,null,null,null,null,null,"e) Políticas y estrategias sobre estímulos académicos para los estudiantes. El programa tiene evidencias sobre la aplicación de estas políticas y estrategias."]
[null,null,"CALIFICACIÓN CARACTERÍSTICA 7",null,null,null,null,null,{"$f":"(SUM(I48:I52))/D48","v":{"$error":"#DIV/0!"}}]
["CALIFICACIÓN FACTOR 2",null,null,null,null,null,null,null,{"$f":"(I53*D48+I47*D44+I43*D36+I35*D31)/100","v":{"$error":"#DIV/0!"}}]
["FACTOR 3",{"$f":"+'3.Resultado'!E14","v":{"$error":"#DIV/0!"}},"CARACTERÍSTICA 8",{"$f":"+'3.Resultado'!E15","v":{"$error":"#DIV/0!"}},3,1,{"$f":"+D55/E55","v":{"$error":"#DIV/0!"}},null,{"$error":"#DIV/0!"},"OTRO",null,null,null,null,null,null,"a) Aplicación de las políticas, las normas y los criterios académicos establecidos por la institución para la selección y la vinculación de los profesores."]
[null,null,null,null,null,2,{"$f":"G55","v":{"$error":"#DIV/0!"}},null,{"$error":"#DIV/0!"},"OTRO",null,null,null,null,null,null,"b) Estrategias de la Institución para propiciar la permanencia de los profesores en el programa y el relevo generacional."]
[null,null,null,null,null,3,{"$f":"G55","v":{"$error":"#DIV/0!"}},null,{"$error":"#DIV/0!"},"ENCUESTA ","X","X",null,"X",null,null,"c) Apreciación de directivos, profesores y estudiantes sobre la aplicación, pertinencia y vigencia de las políticas, las normas y los criterios académicos establecidos por la institución para la selección, vinculación y permanencia de sus profesores."]
[null,null,"CALIFICACIÓN CARACTERÍSTICA 8",null,null,null,null,null,{"$f":"(SUM(I55:I57))/D55","v":{"$error":"#DIV/0!"}}]
[null,null,"CARACTERÍSTICA 9",{"$f":"+'3.Resultado'!E16","v":{"$error":"#DIV/0!"}},6,1,{"$f":"+D59/E59","v":{"$error":"#DIV/0!"}},null,{"$error":"#DIV/0!"},"OTRO",null,null,null,null,null,null,"a) Mecanismos de divulgación del estatuto profesoral."]
[null,null,null,null,null,2,{"$f":"G59","v":{"$error":"#DIV/0!"}},null,{"$error":"#DIV/0!"},"ENCUESTA ",null,"X",null,"X",null,null,"b) Apreciación de directivos y profesores del programa sobre la pertinencia, vigencia y aplicación del estatuto profesoral."]
[null,null,null,null,null,{"$f":"+F60+1","v":3},{"$f":"G59","v":{"$error":"#DIV/0!"}},null,{"$error":"#DIV/0!"},"OTRO",null,null,null,null,null,null,"c) Información actualizada sobre el número de profesores adscritos a la facultad, al programa o departamento que sirva al mismo, por categorías académicas establecidas en el escalafón."]
[null,null,null,null,null,4,{"$f":"G59","v":{"$error":"#DIV/0!"}},null,{"$error":"#DIV/0!"},"OTRO",null,null,null,null,null,null,"d) Aplicación de las políticas institucionales en materia de ubicación, permanencia y ascenso en las categorías del escalafón docente."]
[null,null,null,null,null,5,{"$f":"G59","v":{"$error":"#DIV/0!"}},null,{"$error":"#DIV/0!"},"ENCUESTA ",null,"X",null,"X",null,null,"e) Apreciación de directivos y profesores sobre la aplicación de las políticas institucionales en materia de participación del profesorado en los órganos de dirección de la institución y del programa."]
[null,null,null,null,null,6,{"$f":"G59","v":{"$error":"#DIV/0!"}},null,{"$error":"#DIV/0!"},"OTRO",null,null,null,null,null,null,"f) Evidencias sobre la participación de los profesores en los órganos de dirección del programa, de la facultad, del departamento y/o de la institución, durante los últimos cinco años."]
[null,null,"CALIFICACIÓN CARACTERÍSTICA 9",null,null,null,null,null,{"$f":"(SUM(I59:I64))/D59","v":{"$error":"#DIV/0!"}}]
[null,null,"CARACTERÍSTICA 10",{"$f":"+'3.Resultado'!E17","v":{"$error":"#DIV/0!"}},8,1,{"$f":"+D66/E66","v":{"$error":"#DIV/0!"}},null,{"$error":"#DIV/0!"},"OTRO",null,null,null,null,null,null,"a) Profesores de planta con título de especialización, maestría y doctorado en relación con el objeto de conocimiento del programa adscritos directamente o a través de la facultad o departamento respectivo, e información demostrada acerca de las instituciones en las cuales fueron formados."]
[null,null,null,null,null,2,{"$f":"G66","v":{"$error":"#DIV/0!"}},null,{"$error":"#DIV/0!"},"OTRO",null,null,null,null,null,null,"b) Profesores del programa adscritos en forma directa o a través de la facultad o departamento respectivo con dedicación de tiempo completo, medio tiempo y cátedra, según nivel de formación."]
[null,null,null,null,null,3,{"$f":"G66","v":{"$error":"#DIV/0!"}},null,{"$error":"#DIV/0!"},"OTRO",null,null,null,null,null,null,"c) Tiempos de cada profesor del programa adscritos directamente o a través de la facultad o departamento respectivo, dedicados a la docencia (incluyendo el desarrollo de productos, artefactos, materiales y prototipos, entre otros), a la investigación, a la creación artística, a la extensión o proyección social, a la atención de funciones de gestión académica o administrativa, a la tutoría individual de los estudiantes, de acuerdo con la naturaleza del programa."]
[null,null,null,null,null,{"$f":"+F68+1","v":4},{"$f":"G66","v":{"$error":"#DIV/0!"}},null,{"$error":"#DIV/0!"},"OTRO",null,null,null,null,null,null,"d) Tiempos de los profesores de cátedra dedicados a las tutorías, el acompañamiento de estudiante y el desarrollo de competencias, especialmente actitudes, conocimientos, capacidades y habilidades."]
[null,null,null,null,null,5,{"$f":"G66","v":{"$error":"#DIV/0!"}},null,{"$error":"#DIV/0!"},"OTRO",null,null,null,null,null,null,"e) Experiencia profesional y/o académica de los profesores, según necesidades y exigencias del programa para el desarrollo óptimo de sus funciones sustantivas."]
[null,null,null,null,null,6,{"$f":"G66","v":{"$error":"#DIV/0!"}},null,{"$error":"#DIV/0!"},"OTRO",null,null,null,null,null,null,"f) Suficiencia del número de profesores con relación a la cantidad de estudiantes del programa y sus necesidades de formación de acuerdo con el proyecto educativo."]
[null,null,null,null,null,7,{"$f":"G66","v":{"$error":"#DIV/0!"}},null,{"$error":"#DIV/0!"},"ENCUESTA ","X","X",null,"X",null,null,"g) Apreciación de directivos, profesores y estudiantes del programa adscritos directamente o a través de la facultad o departamento respectivo, sobre la calidad y la suficiencia del número y de la dedicación de los profesores al servicio de éste."]
[null,null,null,null,null,8,{"$f":"G66","v":{"$error":"#DIV/0!"}},null,{"$error":"#DIV/0!"},"OTRO",null,null,null,null,null,null,"h) Existencia y utilización de sistemas y criterios para evaluar el número, la dedicación, el nivel de formación y la experiencia de los profesores del programa, adscritos directamente o a través de la facultad o departamento respectivo; periodicidad de esta evaluación; acciones adelantadas por la institución y el programa, a partir de los resultados de las evaluaciones realizadas en esta materia en los últimos cinco años."]
[null,null,"CALIFICACIÓN CARACTERÍSTICA 10",null,null,null,null,null,{"$f":"(SUM(I66:I73))/D66","v":{"$error":"#DIV/0!"}}]
[null,null,"CARACTERÍSTICA 11",{"$f":"+'3.Resultado'!E18","v":{"$error":"#DIV/0!"}},6,1,{"$f":"+D75/E75","v":{"$error":"#DIV/0!"}},null,{"$error":"#DIV/0!"},"OTRO",null,null,null,null,null,null,"a) Políticas institucionales y evidencias de aplicación, en materia de desarrollo integral del profesorado, que incluyan la capacitación y actualización en los aspectos académicos, profesionales y pedagógicos relacionados con la metodología del programa."]
[null,null,null,null,null,2,{"$f":"G75","v":{"$error":"#DIV/0!"}},null,{"$error":"#DIV/0!"},"OTRO",null,null,null,null,null,null,"b) Número de profesores del programa adscritos directamente o a través de la facultad o departamento respectivo, que han participado en los últimos cinco años en programas de desarrollo profesoral o que han recibido apoyo a la capacitación y actualización permanente, como resultado de las políticas institucionales orientadas para tal fin."]
[null,null,null,null,null,3,{"$f":"G75","v":{"$error":"#DIV/0!"}},null,{"$error":"#DIV/0!"},"ENCUESTA ",null,"X",null,"X",null,null,"c) Apreciación de directivos y profesores del programa adscritos directamente o a través de la facultad o departamento respectivo, sobre el impacto que han tenido las acciones orientadas al desarrollo integral de los profesores, en el enriquecimiento de la calidad del programa."]
[null,null,null,null,null,4,{"$f":"G75","v":{"$error":"#DIV/0!"}},null,{"$error":"#DIV/0!"},"OTRO",null,null,null,null,null,null,"d) Acompañamiento por expertos, para la cualificación de la labor pedagógica de los profesores, de acuerdo con el tipo y metodología del programa."]
[null,null,null,null,null,5,{"$f":"G75","v":{"$error":"#DIV/0!"}},null,{"$error":"#DIV/0!"},"OTRO",null,null,null,null,null,null,"e) Reconocimiento a los profesores que participan en procesos de creación artística y cultural."]
[null,null,null,null,null,6,{"$f":"G75","v":{"$error":"#DIV/0!"}},null,{"$error":"#DIV/0!"},"OTRO",null,null,null,null,null,null,"f) Estrategias orientadas a la actualización docente en temas relacionados con la atención a la diversidad poblacional."]
[null,null,"CALIFICACIÓN CARACTERÍSTICA 11",null,null,null,null,null,{"$f":"(SUM(I75:I80))/D75","v":{"$error":"#DIV/0!"}}]
[null,null,"CARACTERÍSTICA 12",{"$f":"+'3.Resultado'!E19","v":{"$error":"#DIV/0!"}},3,1,{"$f":"+D82/E82","v":{"$error":"#DIV/0!"}},null,{"$error":"#DIV/0!"},"OTRO",null,null,null,null,null,null,"a) Políticas de estímulo y reconocimiento a los profesores por el ejercicio calificado de la docencia, de la investigación, de la innovación, de la creación artística, de la técnica y tecnología, de la extensión o proyección social y de la cooperación internacional. Evidencias de la aplicación de estas políticas."]
[null,null,null,null,null,2,3.7037037037037037,null,0,"OTRO",null,null,null,null,null,null,"b) Estrategias que promueven la creación artística y cultural, la innovación, la adaptación, la transferencia técnica y tecnológica, la creación de tecnofactos y prototipos, y la obtención de patentes, de acuerdo con la naturaleza del programa."]
[null,null,null,null,null,3,3.7037037037037037,null,0,"ENCUESTA ",null,"X",null,"X",null,null,"c) Apreciación de directivos y profesores del programa, adscritos directamente o a través de la facultad o departamento respectivo, sobre el impacto que, para el enriquecimiento de la calidad del programa ha tenido el régimen de estímulos al profesorado por el ejercicio calificado de la docencia, la investigación, la innovación, la creación artística y cultural, la extensión o proyección social, los aportes al desarrollo técnico y tecnológico y la cooperación internacional."]
[null,null,"CALIFICACIÓN CARACTERÍSTICA 12",null,null,null,null,null,{"$f":"(SUM(I82:I84))/D82","v":{"$error":"#DIV/0!"}}]
[null,null,"CARACTERÍSTICA 13",{"$f":"+'3.Resultado'!E20","v":{"$error":"#DIV/0!"}},4,1,{"$f":"+D86/E86","v":{"$error":"#DIV/0!"}},null,{"$f":"G86*H86","v":{"$error":"#DIV/0!"}},"OTRO",null,null,null,null,null,null,"a) Producción, utilización y evaluación de materiales de apoyo docente, en los últimos cinco años, pertinentes a la naturaleza y metodología del programa y su función pedagógica."]
[null,null,null,null,null,2,{"$f":"G86","v":{"$error":"#DIV/0!"}},null,{"$f":"G87*H87","v":{"$error":"#DIV/0!"}},"ENCUESTA ","X",null,null,null,null,null,"b) Apreciación de los estudiantes del programa sobre la calidad de los materiales de apoyo producidos o utilizados por los profesores adscritos al programa y su pertinencia de acuerdo con la metodología del programa."]
[null,null,null,null,null,3,{"$f":"G86","v":{"$error":"#DIV/0!"}},null,{"$error":"#DIV/0!"},"OTRO",null,null,null,null,null,null,"c) Premios u otros reconocimientos a los materiales de apoyo a la labor docente, en el ámbito nacional o internacional, que hayan producido los profesores adscritos al programa."]
[null,null,null,null,null,4,{"$f":"G86","v":{"$error":"#DIV/0!"}},null,{"$error":"#DIV/0!"},"OTRO",null,null,null,null,null,null,"d) Existencia y aplicación de un régimen de propiedad intelectual en la institución aplicado a los materiales de apoyo a la docencia."]
[null,null,"CALIFICACIÓN CARACTERÍSTICA 13",null,null,null,null,null,{"$f":"(SUM(I86:I89))/D86","v":{"$error":"#DIV/0!"}}]
[null,null,"CARACTERÍSTICA 14",{"$f":"+'3.Resultado'!E21","v":{"$error":"#DIV/0!"}},3,1,{"$f":"+D91/E91","v":{"$error":"#DIV/0!"}},null,{"$error":"#DIV/0!"},"OTRO",null,null,null,null,null,null,"a) Políticas y reglamentaciones institucionales en materia de remuneración de los profesores en las que se tengan en cuenta los méritos profesionales y académicos, así como los estímulos a la producción académica y de innovación debidamente evaluada."]
[null,null,null,null,null,2,1.8518518518518519,null,0,"OTRO",null,null,null,null,null,null,"b) Evidencias sobre la aplicación de estas políticas y reglamentaciones."]
[null,null,null,null,null,3,1.8518518518518519,null,0,"ENCUESTA ",null,"X",null,null,null,null,"c) Apreciación de los profesores con respecto a la correspondencia entre la remuneración y los méritos académicos y profesionales"]
[null,null,"CALIFICACIÓN CARACTERÍSTICA 14",null,null,null,null,null,{"$f":"(SUM(I91:I93))/D91","v":{"$error":"#DIV/0!"}}]
[null,null,"CARACTERÍSTICA 15",{"$f":"+'3.Resultado'!E22","v":{"$error":"#DIV/0!"}},5,1,{"$f":"+D95/E95","v":{"$error":"#DIV/0!"}},null,{"$error":"#DIV/0!"},"OTRO",null,null,null,null,null,null,"a) Existencia y aplicación de políticas institucionales en materia de evaluación integral al desempeño de los profesores. La institución presente evidencias sobre el desarrollo de estas políticas."]
[null,null,null,null,null,2,{"$f":"G95","v":{"$error":"#DIV/0!"}},null,{"$error":"#DIV/0!"},"OTRO",null,null,null,null,null,null,"b) Criterios y mecanismos de evaluación de los profesores adscritos al programa, en correspondencia con la naturaleza del cargo, las funciones y los compromisos contraídos en relación con las metas institucionales y del programa. c) Evaluaciones realizadas a los profesores adscritos al programa durante los últimos cinco años y las acciones adelantadas por la institución y por el programa a partir de dichos resultados."]
[null,null,null,null,null,3,{"$f":"G95","v":{"$error":"#DIV/0!"}},null,{"$error":"#DIV/0!"},"OTRO",null,null,null,null,null,null,"c) Evaluaciones realizadas a los profesores adscritos al programa durante los últimos 5 años y las acciones adelantadas por la institución y por el programa a partir de dichos resultados"]
[null,null,null,null,null,4,{"$f":"G95","v":{"$error":"#DIV/0!"}},null,{"$error":"#DIV/0!"},"OTRO",null,null,null,null,null,null,"d) Información verificable sobre la participación de los distintos actores en la evaluación. "]
[null,null,null,null,null,5,{"$f":"G95","v":{"$error":"#DIV/0!"}},null,{"$error":"#DIV/0!"},"ENCUESTA ",null,"X",null,null,null,null,"e) Apreciación de los profesores adscritos al programa, sobre los criterios y mecanismos para la evaluación de docentes, su transparencia, equidad y eficacia."]
[null,null,"CALIFICACIÓN CARACTERÍSTICA 15",null,null,null,null,null,{"$f":"(SUM(I95:I99))/D95","v":{"$error":"#DIV/0!"}},"ENCUESTA "]
["CALIFICACIÓN FACTOR 3",null,null,null,null,null,null,null,{"$f":"(I100*D95+I94*D91+I90*D86+I85*D82+I81*D75+I74*D66+I65*D59+I58*D55)/100","v":{"$error":"#DIV/0!"}}]
["FACTOR 4",{"$f":"+'3.Resultado'!E24","v":{"$error":"#DIV/0!"}},"CARACTERÍSTICA 16",{"$f":"+'3.Resultado'!E25","v":{"$error":"#DIV/0!"}},10,1,{"$f":"+D102/E102","v":{"$error":"#DIV/0!"}},null,{"$f":"G102*H102","v":{"$error":"#DIV/0!"}},"OTRO",null,null,null,null,null,null,"a) Existencia de criterios y mecanismos para el seguimiento y la evaluación del desarrollo de competencias, especialmente las actitudes, los conocimientos, las capacidades y las habilidades generales y aquellas que son específicas del ejercicio y de la cultura de la profesión o la disciplina en la que se forma al estudiante."]
[null,null,null,null,null,2,{"$f":"G102","v":{"$error":"#DIV/0!"}},null,{"$f":"G103*H103","v":{"$error":"#DIV/0!"}},"OTRO",null,null,null,null,null,null,"b) Créditos académicos del programa correspondiente a asignaturas orientadas a ampliar la formación del estudiante en las dimensiones ética, estética, ambiental, filosófica, política y social."]
[null,null,null,null,null,3,{"$f":"G102","v":{"$error":"#DIV/0!"}},null,{"$error":"#DIV/0!"},"OTRO",null,null,null,null,null,null,"c) Asignación de créditos y de distribución de tiempos directo e independiente, a las distintas actividades de formación de acuerdo con la modalidad en que se ofrece el programa."]
[null,null,null,null,null,4,{"$f":"G102","v":{"$error":"#DIV/0!"}},null,{"$error":"#DIV/0!"},"ENCUESTA ","X","X",null,"X",null,null,"d) Apreciación de directivos, profesores y estudiantes sobre la calidad e integralidad del currículo."]
[null,null,null,null,null,5,{"$f":"G102","v":{"$error":"#DIV/0!"}},null,{"$error":"#DIV/0!"},"OTRO",null,null,null,null,null,null,"e) Estrategias aplicadas para el fomento de la creatividad y del desarrollo de pensamiento autónomo en los estudiantes."]
[null,null,null,null,null,6,{"$f":"G102","v":{"$error":"#DIV/0!"}},null,{"$error":"#DIV/0!"},"OTRO",null,null,null,null,null,null,"f) Desempeño de los estudiantes del programa en las Pruebas de Estado de educación superior, en los últimos cinco años. Calificaciones promedio con respecto al promedio nacional."]
[null,null,null,null,null,7,{"$f":"G102","v":{"$error":"#DIV/0!"}},null,{"$error":"#DIV/0!"},"OTRO",null,null,null,null,null,null,"g) Valor agregado obtenido en los resultados de las Pruebas de Estado (Saber Pro), con relación a las Pruebas Saber Once utilizadas como mecanismo de ingreso a la educación superior y al desempeño de los estudiantes adscritos al programa."]
[null,null,null,null,null,8,{"$f":"G102","v":{"$error":"#DIV/0!"}},null,{"$error":"#DIV/0!"},"OTRO",null,null,null,null,null,null,"h) Identificación en el perfil profesional y ocupacional de los distintos tipos de competencias, especialmente actitudes, conocimientos, capacidades y habilidades requeridas en el nivel de formación y las actividades académicas necesarias para su desarrollo."]
[null,null,null,null,null,9,{"$f":"G102","v":{"$error":"#DIV/0!"}},null,{"$error":"#DIV/0!"},"OTRO",null,null,null,null,null,null,"i) Articulación del plan de estudios con los diversos niveles de formación (periodos académicos, especialización, maestría y doctorado, componentes propedéuticos y /o ciclos, entre otros )"]
[null,null,null,null,null,10,{"$f":"G102","v":{"$error":"#DIV/0!"}},null,{"$error":"#DIV/0!"},"OTRO",null,null,null,null,null,null,"j) Aplicación de estrategias efectivas orientadas al desarrollo de competencias, especialmente conocimientos, capacidades y habilidades comunicativas en un segundo idioma extranjero."]
[null,null,"CALIFICACIÓN CARACTERÍSTICA  16",null,null,null,null,null,{"$f":"(SUM(I102:I111))/D102","v":{"$error":"#DIV/0!"}}]
[null,null,"CARACTERÍSTICA 17",{"$f":"+'3.Resultado'!E26","v":{"$error":"#DIV/0!"}},10,1,{"$f":"+D113/E113","v":{"$error":"#DIV/0!"}},null,{"$f":"G113*H113","v":{"$error":"#DIV/0!"}},"OTRO",null,null,null,null,null,null,"a) Existencia y aplicación de políticas institucionales en materia de flexibilidad, referidas a la organización y jerarquización de los contenidos, reconocimiento de créditos, formación en competencias tales como actitudes, conocimientos, capacidades, y habilidades, y estrategias pedagógicas, electividad, doble titulación y movilidad."]
[null,null,null,null,null,2,{"$f":"G113","v":{"$error":"#DIV/0!"}},null,{"$error":"#DIV/0!"},"OTRO",null,null,null,null,null,null,"b) Existencia y aplicación de políticas y normas para asegurar la continuidad y movilidad del estudiante en el sistema educativo y en la institución: homologaciones de créditos, reconocimientos de experiencias educativas y laborales previas, equivalencia de títulos y transferencias."]
[null,null,null,null,null,3,{"$f":"G113","v":{"$error":"#DIV/0!"}},null,{"$error":"#DIV/0!"},"OTRO",null,null,null,null,null,null,"c) Mecanismos de actualización permanente del currículo en consonancia con los desarrollos disciplinares, profesionales y pedagógicos, y en atención a las necesidades del entorno."]
[null,null,null,null,null,4,{"$f":"G113","v":{"$error":"#DIV/0!"}},null,{"$error":"#DIV/0!"},"OTRO",null,null,null,null,null,null,"d) Índice de flexibilidad curricular y comparativos nacionales e internacionales."]
[null,null,null,null,null,5,{"$f":"G113","v":{"$error":"#DIV/0!"}},null,{"$error":"#DIV/0!"},"ENCUESTA ","X","X",null,"X",null,null,"e) Apreciación de directivos, profesores y estudiantes del programa sobre la aplicación y eficacia de las políticas institucionales en materia de flexibilidad curricular."]
[null,null,null,null,null,6,{"$f":"G113","v":{"$error":"#DIV/0!"}},null,{"$error":"#DIV/0!"},"OTRO",null,null,null,null,null,null,"f) Movilidad estudiantil con otras instituciones nacionales e internacionales.."]
[null,null,null,null,null,7,{"$f":"G113","v":{"$error":"#DIV/0!"}},null,{"$error":"#DIV/0!"},"OTRO",null,null,null,null,null,null,"g) Existencia de sistemas de homologación de créditos y de tránsito del pregrado al postgrado."]
[null,null,null,null,null,8,{"$f":"G113","v":{"$error":"#DIV/0!"}},null,{"$error":"#DIV/0!"},"OTRO",null,null,null,null,null,null,"h) Convenios y relaciones de cooperación con instituciones de educación media y superior y con el sector laboral, para asegurar el tránsito y continuidad de los estudiantes en el sistema educativo y su inserción en el sistema productivo, de acuerdo con el tipo y modalidad del programa."]
[null,null,null,null,null,9,{"$f":"G113","v":{"$error":"#DIV/0!"}},null,{"$error":"#DIV/0!"},"OTRO",null,null,null,null,null,null,"i) Oferta académica que facilite la aplicación de criterios de flexibilidad con miras a garantizar la participación de los estudiantes, en el diseño de su propio plan académico, de acuerdo con sus intereses y la adquisición de, competencias, tales como actitudes, conocimientos, capacidades y habilidades, con el apoyo de un tutor o asesor."]
[null,null,null,null,null,10,{"$f":"G113","v":{"$error":"#DIV/0!"}},null,{"$error":"#DIV/0!"},"OTRO",null,null,null,null,null,null,"j) Acciones llevadas a cabo entre la Institución y otras instituciones del sector público o privado (educativo, productivo, financiero, entre otros) para articular y afirmar el carácter secuencial y complementario de los ciclos, desde el punto"]
[null,null,"CALIFICACIÓN CARACTERÍSTICA 17",null,null,null,null,null,{"$f":"(SUM(I113:I122))/D113","v":{"$error":"#DIV/0!"}}]
[null,null,"CARACTERÍSTICA 18",{"$f":"+'3.Resultado'!E27","v":{"$error":"#DIV/0!"}},3,1,{"$f":"+D124/E124","v":{"$error":"#DIV/0!"}},null,{"$error":"#DIV/0!"},"OTRO",null,null,null,null,null,null,"a) Espacios y actividades curriculares y extracurriculares con carácter explícitamente interdisciplinario."]
[null,null,null,null,null,2,{"$f":"G124","v":{"$error":"#DIV/0!"}},null,{"$error":"#DIV/0!"},"OTRO",null,null,null,null,null,null,"b) Mecanismos que permitan el tratamiento de problemas pertinentes al programa y al ejercicio laboral, a través de orientaciones interdisciplinarias por parte de profesores y estudiantes."]
[null,null,null,null,null,3,{"$f":"G124","v":{"$error":"#DIV/0!"}},null,{"$error":"#DIV/0!"},"ENCUESTA ","X","X",null,null,null,null,"c) Apreciación de profesores y estudiantes sobre la pertinencia y eficacia de la interdisciplinariedad del programa en el enriquecimiento de la calidad del mismo."]
[null,null,"CALIFICACIÓN CARACTERÍSTICA 18",null,null,null,null,null,{"$f":"(SUM(I124:I126))/D124","v":{"$error":"#DIV/0!"}},"ENCU"]
[null,null,"CARACTERÍSTICA 19",{"$f":"+'3.Resultado'!E28","v":{"$error":"#DIV/0!"}},14,1,{"$f":"+D128/E128","v":{"$error":"#DIV/0!"}},null,{"$f":"G128*H128","v":{"$error":"#DIV/0!"}},"OTRO",null,null,null,null,null,null,"a) Concordancia de los métodos de enseñanza y aprendizaje utilizados con el tipo y metodología del programa."]
[null,null,null,null,null,2,{"$f":"G128","v":{"$error":"#DIV/0!"}},null,{"$f":"G129*H129","v":{"$error":"#DIV/0!"}},"OTRO",null,null,null,null,null,null,"b) Correspondencia de los métodos de enseñanza y aprendizaje empleados para el desarrollo de los contenidos del plan de estudios del programa, con las competencias tales como las actitudes, los conocimientos, las capacidades y las habilidades que se espera desarrollar, la naturaleza de los saberes y las necesidades, objetivos y modalidad del programa."]
[null,null,null,null,null,3,{"$f":"G128","v":{"$error":"#DIV/0!"}},null,{"$error":"#DIV/0!"},"ENCUESTA ","X","X",null,"X",null,null,"c) Apreciación de los estudiantes, profesores y directivos del programa sobre la correspondencia entre los métodos de enseñanza y aprendizaje que se emplean en el programa y el desarrollo de los contenidos del plan de estudios."]
[null,null,null,null,null,4,{"$f":"G128","v":{"$error":"#DIV/0!"}},null,{"$error":"#DIV/0!"},"OTRO",null,null,null,null,null,null,"d) Estrategias y mecanismos de seguimiento y acompañamiento por parte del docente al trabajo que realizan los estudiantes en las distintas actividades académicas, de acuerdo con sus capacidades y potencialidades y con el tipo y metodología del programa."]
[null,null,null,null,null,5,{"$f":"G128","v":{"$error":"#DIV/0!"}},null,{"$error":"#DIV/0!"},"OTRO",null,null,null,null,null,null,"e) Incorporación de los adelantos y transformaciones que se han dado en las ciencias, las técnicas y las tecnologías implicadas, de acuerdo con el tipo y modalidad del programa."]
[null,null,null,null,null,6,{"$f":"G128","v":{"$error":"#DIV/0!"}},null,{"$error":"#DIV/0!"},"OTRO",null,null,null,null,null,null,"f) Estrategias pedagógicas, didácticas y comunicativas acordes con la metodología y con las posibilidades tecnológicas y las necesidades de los estudiantes en atención a su diversidad."]
[null,null,null,null,null,7,{"$f":"G128","v":{"$error":"#DIV/0!"}},null,{"$error":"#DIV/0!"},"OTRO",null,null,null,null,null,null,"g) Articulación entre las estrategias pedagógicas propias de la metodología de enseñanza y los recursos tecnológicos utilizados."]
[null,null,null,null,null,8,{"$f":"G128","v":{"$error":"#DIV/0!"}},null,{"$error":"#DIV/0!"},"OTRO",null,null,null,null,null,null,"h) Estrategias y mecanismos pedagógicos aplicados y orientados hacia la integración de las tres funciones sustantivas de investigación, docencia y proyección social."]
[null,null,null,null,null,9,{"$f":"G128","v":{"$error":"#DIV/0!"}},null,{"$error":"#DIV/0!"},"OTRO",null,null,null,null,null,null,"i) Estudios realizados por la institución y el programa para identificar y evaluar la permanencia y retención, de acuerdo con la metodología de enseñanza en que se ofrece el programa."]
[null,null,null,null,null,10,{"$f":"G128","v":{"$error":"#DIV/0!"}},null,{"$error":"#DIV/0!"},"OTRO",null,null,null,null,null,null,"j) Correlación entre la duración prevista para el programa, de acuerdo con su metodología y plan de estudios, y la que realmente tiene lugar."]
[null,null,null,null,null,11,{"$f":"G128","v":{"$error":"#DIV/0!"}},null,{"$error":"#DIV/0!"},"OTRO",null,null,null,null,null,null,"k) Estrategias para garantizar el éxito académico de los estudiantes en el tiempo previsto para el desarrollo del plan de estudios, atendiendo los estándares de calidad."]
[null,null,null,null,null,12,{"$f":"G128","v":{"$error":"#DIV/0!"}},null,{"$error":"#DIV/0!"},"OTRO",null,null,null,null,null,null,"l) Informes estadísticos sobre la población de estudiantes del programa desde el primero hasta el último semestre, en las últimas cinco cohortes."]
[null,null,null,null,null,13,{"$f":"G128","v":{"$error":"#DIV/0!"}},null,{"$error":"#DIV/0!"},"ENCUESTA ","X","X",null,null,null,null,"m) Apreciación de profesores y estudiantes sobre la correspondencia entre las condiciones y exigencias académicas de permanencia y graduación en el programa, y la naturaleza del mismo."]
[null,null,null,null,null,14,{"$f":"G128","v":{"$error":"#DIV/0!"}},null,{"$error":"#DIV/0!"},"OTRO",null,null,null,null,null,null,"n) Existencia de mecanismos de seguimiento, acompañamiento especial a estudiantes y adecuaciones locativas para facilitar el óptimo desempeño de admitidos en condición de vulnerabilidad y discapacidad, entre otros."]
[null,null,"CALIFICACIÓN CARACTERÍSTICA 19",null,null,null,null,null,{"$f":"(SUM(I128:I141))/D128","v":{"$error":"#DIV/0!"}}]
[null,null,"CARACTERÍSTICA 20",{"$f":"+'3.Resultado'!E29","v":{"$error":"#DIV/0!"}},6,1,{"$f":"+D143/E143","v":{"$error":"#DIV/0!"}},null,{"$error":"#DIV/0!"},"OTRO",null,null,null,null,null,null,"a) Criterios, políticas y reglamentaciones institucionales y del programa en materia de evaluación académica de los estudiantes. Evidencias de aplicación y divulgación de la misma."]
[null,null,null,null,null,2,{"$f":"G143","v":{"$error":"#DIV/0!"}},null,{"$error":"#DIV/0!"},"OTRO",null,null,null,null,null,null,"b) Correspondencia entre las formas de evaluación de los aprendizajes, los propósitos de formación y los perfiles de egreso definidos por el programa."]
[null,null,null,null,null,3,{"$f":"G143","v":{"$error":"#DIV/0!"}},null,{"$error":"#DIV/0!"},"ENCUESTA ","X","X",null,"X",null,null,"c) Apreciación de directivos, profesores y estudiantes del programa sobre la correspondencia entre las formas de evaluación académica de los estudiantes, la naturaleza del mismo y los métodos pedagógicos empleados para su desarrollo."]
[null,null,null,null,null,4,{"$f":"G143","v":{"$error":"#DIV/0!"}},null,{"$error":"#DIV/0!"},"ENCUESTA ","X",null,null,null,null,null,"d) Apreciación de los estudiantes acerca de la utilidad del sistema de evaluación académica en la adquisición de competencias, tales como las actitudes, los conocimientos, las capacidades y las habilidades propias del programa."]
[null,null,null,null,null,5,{"$f":"G143","v":{"$error":"#DIV/0!"}},null,{"$error":"#DIV/0!"},"OTRO",null,null,null,null,null,null,"e) Criterios y procedimientos orientados a la evaluación de competencias especialmente actitudes, conocimientos, capacidades y habilidades, y estrategias de retroalimentación de la actividad académica de los estudiantes."]
[null,null,null,null,null,6,{"$f":"G143","v":{"$error":"#DIV/0!"}},null,{"$error":"#DIV/0!"},"OTRO",null,null,null,null,null,null,"f) Criterios y procedimientos para la revisión de los sistemas de evaluación académica de los estudiantes."]
[null,null,"CALIFICACIÓN CARACTERÍSTICA 20",null,null,null,null,null,{"$f":"(SUM(I143:I148))/D143","v":{"$error":"#DIV/0!"}}]
[null,null,"CARACTERÍSTICA 21",{"$f":"+'3.Resultado'!E30","v":{"$error":"#DIV/0!"}},5,1,{"$f":"+D150/E150","v":{"$error":"#DIV/0!"}},null,{"$f":"G150*H150","v":{"$error":"#DIV/0!"}},"OTRO",null,null,null,null,null,null,"a) Correspondencia entre el tipo de trabajos y actividades realizados por los estudiantes respecto a los objetivos y modalidad del programa."]
[null,null,null,null,null,2,{"$f":"G150","v":{"$error":"#DIV/0!"}},null,{"$error":"#DIV/0!"},"OTRO",null,null,null,null,null,null,"b) Criterios y estrategias aplicados en el programa para efecto de la dosificación de la labor académica de los estudiantes en coherencia con el sistema de créditos."]
[null,null,null,null,null,3,{"$f":"G150","v":{"$error":"#DIV/0!"}},null,{"$error":"#DIV/0!"},"ENCUESTA ",null,"X",null,"X",null,null,"c) Apreciación de directivos y profesores adscritos al programa sobre la correspondencia entre la calidad de los trabajos realizados por los estudiantes y los objetivos de logro definidos para el mismo, incluyendo la formación personal."]
[null,null,null,null,null,4,{"$f":"G150","v":{"$error":"#DIV/0!"}},null,{"$error":"#DIV/0!"},"OTRO",null,null,null,null,null,null,"d) Correspondencia entre las actividades y trabajos realizados por los estudiantes y las formas de evaluación por competencias especialmente en actitudes, conocimientos, capacidades y habilidades, según la naturaleza del programa y los métodos pedagógicos empleados para desarrollar los diversos procesos de formación."]
[null,null,null,null,null,5,{"$f":"G150","v":{"$error":"#DIV/0!"}},null,{"$error":"#DIV/0!"},"OTRO",null,null,null,null,null,null,"e) Trabajos académicos realizados por estudiantes del programa, en los últimos cinco años, que han merecido premios o reconocimientos significativos por la comunidad académica nacional o internacional."]
[null,null,"CALIFICACIÓN CARACTERÍSTICA 21",null,null,null,null,null,{"$f":"(SUM(I150:I154))/D150","v":{"$error":"#DIV/0!"}}]
[null,null,"CARACTERÍSTICA 22",{"$f":"+'3.Resultado'!E31","v":{"$error":"#DIV/0!"}},4,1,{"$f":"+D156/E156","v":{"$error":"#DIV/0!"}},null,{"$error":"#DIV/0!"},"OTRO",null,null,null,null,null,null,"a) Existencia y aplicación de políticas en materia de evaluación y autorregulación del programa académico que conduzcan al diseño y formulación de planes de mejoramiento continuo y a la gestión de la innovación."]
[null,null,null,null,null,2,{"$f":"G156","v":{"$error":"#DIV/0!"}},null,{"$error":"#DIV/0!"},"OTRO",null,null,null,null,null,null,"b) Estrategias verificables de seguimiento, evaluación y mejoramiento continuo y gestión de la innovación de los procesos y logros del programa, así como de su pertinencia y relevancia social."]
[null,null,null,null,null,3,{"$f":"G156","v":{"$error":"#DIV/0!"}},null,{"$error":"#DIV/0!"},"ENCUESTA ","X","X",null,"X",null,null,"c) Apreciación de directivos, profesores, estudiantes sobre la incidencia de los sistemas de evaluación y autorregulación del programa en el enriquecimiento de la calidad de éste."]
[null,null,null,null,null,4,{"$f":"G156","v":{"$error":"#DIV/0!"}},null,{"$error":"#DIV/0!"},"OTRO",null,null,null,null,null,null,"d) Cambios específicos realizados en el programa, en los últimos cinco años, a partir de los resultados de los procesos de evaluación y autorregulación."]
[null,null,"CALIFICACIÓN CARACTERÍSTICA 22",null,null,null,null,null,{"$f":"(SUM(I156:I159))/D156","v":{"$error":"#DIV/0!"}}]
[null,null,"CARACTERÍSTICA 23",{"$f":"+'3.Resultado'!E32","v":{"$error":"#DIV/0!"}},8,1,{"$f":"+D161/E161","v":{"$error":"#DIV/0!"}},null,{"$error":"#DIV/0!"},"OTRO",null,null,null,null,null,null,"a) Existencia y aplicación de criterios y políticas institucionales y del programa en materia de extensión o proyección social."]
[null,null,null,null,null,2,{"$f":"G161","v":{"$error":"#DIV/0!"}},null,{"$error":"#DIV/0!"},"OTRO",null,null,null,null,null,null,"b) Proyectos y actividades de extensión o proyección a la comunidad desarrollados por directivos, profesores y estudiantes del programa en los últimos cinco años."]
[null,null,null,null,null,3,{"$f":"G161","v":{"$error":"#DIV/0!"}},null,{"$error":"#DIV/0!"},"OTRO",null,null,null,null,null,null,"c) Evidencias del impacto en el entorno que han generado los resultados de los proyectos de extensión o proyección social desarrollados por el programa."]
[null,null,null,null,null,4,{"$f":"G161","v":{"$error":"#DIV/0!"}},null,{"$error":"#DIV/0!"},"OTRO",null,null,null,null,null,null,"d) Participación del programa en la aplicación las políticas nacionales en materia de innovación y desarrollo económico, técnico y tecnológico (innovación, adaptación, transferencia), de acuerdo con el tipo y modalidad del programa."]
[null,null,null,null,null,5,{"$f":"G161","v":{"$error":"#DIV/0!"}},null,{"$error":"#DIV/0!"},"ENCUESTA ",null,null,null,null,null,"X","e) Apreciación de empresarios, funcionarios públicos, líderes comunitarios y de otros agentes externos sobre el impacto social de los proyectos desarrollados por el programa."]
[null,null,null,null,null,6,{"$f":"G161","v":{"$error":"#DIV/0!"}},null,{"$error":"#DIV/0!"},"OTRO",null,null,null,null,null,null,"f) Número y tipo de reconocimientos hechos en los últimos cinco años por entidades gubernamentales y no gubernamentales al impacto que el programa ha ejercido en los medios local, regional, nacional o internacional."]
[null,null,null,null,null,7,{"$f":"G161","v":{"$error":"#DIV/0!"}},null,{"$error":"#DIV/0!"},"OTRO",null,null,null,null,null,null,"g) Mecanismos para el análisis de las acciones que el programa ejerce sobre el medio y para la revisión periódica de las estrategias implementadas en esa materia."]
[null,null,null,null,null,8,{"$f":"G161","v":{"$error":"#DIV/0!"}},null,{"$error":"#DIV/0!"},"OTRO",null,null,null,null,null,null,"h) Información sobre las comunidades, empresas, gobiernos, instituciones, organizaciones de usuarios, y asociaciones a los que se presta asistencia técnica o tecnológica, servicios, asesorías y otros apoyos que apuntan a la resolución de problemas o a la ejecución de programas de mejoramiento, de acuerdo con la naturaleza y modalidad del programa."]
[null,null,"CALIFICACIÓN CARACTERÍSTICA 23",null,null,null,null,null,{"$f":"(SUM(I161:I168))/D161","v":{"$error":"#DIV/0!"}}]
[null,null,"CARACTERÍSTICA 24",{"$f":"+'3.Resultado'!E33","v":{"$error":"#DIV/0!"}},5,1,{"$f":"+D170/E170","v":{"$error":"#DIV/0!"}},null,{"$error":"#DIV/0!"},"OTRO",null,null,null,null,null,null,"a) Estrategias y mecanismos orientados a incentivar en el estudiante la consulta y el uso de material bibliográfico. Evidencias de aplicación de estas estrategias y mecanismos."]
[null,null,null,null,null,2,{"$f":"G170","v":{"$error":"#DIV/0!"}},null,{"$error":"#DIV/0!"},"OTRO",null,null,null,null,null,null,"b) Existencia y aplicación de criterios y políticas institucionales y del programa en materia de acceso, adquisición y actualización de material bibliográfico."]
[null,null,null,null,null,3,{"$f":"G170","v":{"$error":"#DIV/0!"}},null,{"$error":"#DIV/0!"},"OTRO",null,null,null,null,null,null,"c) Pertinencia, actualización y suficiencia del material bibliográfico con que cuenta el programa para apoyar el desarrollo de las distintas actividades académicas, de acuerdo con el tipo y modalidad de programa."]
[null,null,null,null,null,4,{"$f":"G170","v":{"$error":"#DIV/0!"}},null,{"$error":"#DIV/0!"},"OTRO",null,null,null,null,null,null,"d) Inversión anual en las adquisiciones de libros, revistas especializadas, bases de datos y suscripciones a publicaciones periódicas, relacionados con el programa académico, en los últimos 5 años."]
[null,null,null,null,null,5,{"$f":"G170","v":{"$error":"#DIV/0!"}},null,{"$error":"#DIV/0!"},"OTRO",null,null,null,null,null,null,"e) Profesores y estudiantes del programa que utilizan recursos bibliográficos: libros, revistas especializadas y bases de datos, en los últimos cinco años, de acuerdo con el tipo y modalidad del programa."]
[null,null,"CALIFICACIÓN CARACTERÍSTICA 24",null,null,null,null,null,{"$f":"(SUM(I170:I174))/D170","v":{"$error":"#DIV/0!"}}]
[null,null,"CARACTERÍSTICA 25",{"$f":"+'3.Resultado'!E34","v":{"$error":"#DIV/0!"}},6,1,{"$f":"+D176/E176","v":{"$error":"#DIV/0!"}},null,{"$error":"#DIV/0!"},"OTRO",null,null,null,null,null,null,"a) Plataforma tecnológica que garantice la conectividad, interactividad y acceso a sistemas de información, apoyos y recursos para el aprendizaje, de acuerdo con el tipo y modalidad del programa."]
[null,null,null,null,null,2,{"$f":"G176","v":{"$error":"#DIV/0!"}},null,{"$error":"#DIV/0!"},"OTRO",null,null,null,null,null,null,"b) Estrategias y mecanismos orientados a incentivar el uso de recursos informáticos y de comunicación, por parte de profesores adscritos al programa y estudiantes."]
[null,null,null,null,null,3,{"$f":"G176","v":{"$error":"#DIV/0!"}},null,{"$error":"#DIV/0!"},"OTRO",null,null,null,null,null,null,"c) Disponibilidad para docentes, estudiantes, directivos y administrativos, actualización y calidad de los recursos informáticos y de comunicaciones para el desarrollo de los procesos académicos y de apoyo del programa, de acuerdo con su naturaleza."]
[null,null,null,null,null,{"$f":"+F178+1","v":4},{"$f":"G176","v":{"$error":"#DIV/0!"}},null,{"$error":"#DIV/0!"},"OTRO",null,null,null,null,null,null,"d) Estrategias que garanticen el rendimiento de los equipos, la capacidad de almacenamiento y la seguridad (confidencialidad, disponibilidad e integridad) en el manejo de la información."]
[null,null,null,null,null,5,{"$f":"G176","v":{"$error":"#DIV/0!"}},null,{"$error":"#DIV/0!"},"OTRO",null,null,null,null,null,null,"e) Eficiencia, oportunidad y eficacia en cuanto a la actualización y al soporte técnico de la plataforma informática y los equipos computacionales."]
[null,null,null,null,null,6,{"$f":"G176","v":{"$error":"#DIV/0!"}},null,{"$error":"#DIV/0!"},"ENCUESTA ","X","X",null,"X",null,null,"f) Apreciación de directivos, profesores y estudiantes del programa sobre la pertinencia, correspondencia y suficiencia de los recursos informáticos y de comunicación con que cuenta el programa."]
[null,null,"CALIFICACIÓN CARACTERÍSTICA 25",null,null,null,null,null,{"$f":"(SUM(I176:I181))/D176","v":{"$error":"#DIV/0!"}}]
[null,null,"CARACTERÍSTICA 26",{"$f":"+'3.Resultado'!E35","v":{"$error":"#DIV/0!"}},6,1,{"$f":"+D183/E183","v":{"$error":"#DIV/0!"}},null,{"$error":"#DIV/0!"},"OTRO",null,null,null,null,null,null,"a) Dotación adecuada de equipos, materiales e insumos en los laboratorios y talleres, campos de práctica y plantas piloto, según la naturaleza, metodología y exigencias del programa."]
[null,null,null,null,null,2,{"$f":"G183","v":{"$error":"#DIV/0!"}},null,{"$error":"#DIV/0!"},"OTRO",null,null,null,null,null,null,"b) Dotación adecuada de laboratorios, máquinas y talleres suficientemente dotados con equipos y materiales, según la naturaleza, metodología y exigencias del programa, y que cumplen las normas sanitarias y de bioseguridad, seguridad industrial y de salud ocupacional y manejo de seres vivos, de acuerdo con la normativa vigente."]
[null,null,null,null,null,{"$f":"+F184+1","v":3},{"$f":"G183","v":{"$error":"#DIV/0!"}},null,{"$error":"#DIV/0!"},"OTRO",null,null,null,null,null,null,"c) Disponibilidad y capacidad de talleres, laboratorios, equipos, medios audiovisuales, sitios de práctica, estaciones y granjas experimentales, escenarios de simulación virtual, entre otros, para el óptimo desarrollo de la actividad docente, investigativa y de extensión, según requerimientos del programa."]
[null,null,null,null,null,4,{"$f":"G183","v":{"$error":"#DIV/0!"}},null,{"$error":"#DIV/0!"},"OTRO",null,null,null,null,null,null,"d) Convenios con centros, instituciones, empresas u organizaciones, que faciliten el uso de otros recursos y escenarios de enseñanza, aprendizaje, investigación y creación artística y cultural, por parte de la comunidad académica."]
[null,null,null,null,null,5,{"$f":"G183","v":{"$error":"#DIV/0!"}},null,{"$error":"#DIV/0!"},"OTRO",null,null,null,null,null,null,"e) Para programas del área de Ciencias de la Salud, información sobre escenarios de práctica y convenios docente-asistenciales de largo plazo, con Hospitales Universitarios o IPS acreditadas, certificados por el Ministerio de Protección Social. Evidenciar su pertinencia, calidad docente y capacidad instalada en relación con el número de estudiantes del programa."]
[null,null,null,null,null,6,{"$f":"G183","v":{"$error":"#DIV/0!"}},null,{"$error":"#DIV/0!"},"ENCUESTA ","X","X",null,null,null,null,"f) Apreciación de profesores y estudiantes del programa sobre la capacidad, disponibilidad, dotación y utilización de laboratorios, talleres, ayudas audiovisuales y campos de práctica, entre otros recursos de apoyo docente."]
[null,null,"CALIFICACIÓN CARACTERÍSTICA 26",null,null,null,null,null,{"$f":"(SUM(I183:I188))/D183","v":{"$error":"#DIV/0!"}}]
["CALIFICACIÓN FACTOR 4",null,null,null,null,null,null,null,{"$f":"(I189*D183+I182*D176+I175*D170+I169*D161+I160*D156+I155*D150+I149*D143+I142*D128+I127*D124+I123*D113+I112*D102)/100","v":{"$error":"#DIV/0!"}}]
["FACTOR 5",{"$f":"+'3.Resultado'!E37","v":{"$error":"#DIV/0!"}},"CARACTERÍSTICA 27",{"$f":"+'3.Resultado'!E38","v":{"$error":"#DIV/0!"}},9,1,{"$f":"+D191/E191","v":{"$error":"#DIV/0!"}},null,{"$f":"G191*H191","v":{"$error":"#DIV/0!"}},"OTRO",null,null,null,null,null,null,"a) Existencia y aplicación de políticas institucionales en materia de referentes académicos externos, nacionales e internacionales para la revisión y actualización del plan de estudio."]
[null,null,null,null,null,2,{"$f":"G191","v":{"$error":"#DIV/0!"}},null,{"$error":"#DIV/0!"},"OTRO",null,null,null,null,null,null,"b) Análisis sistemático de comparabilidad con otros programas nacionales e internacionales de la misma naturaleza."]
[null,null,null,null,null,3,{"$f":"G191","v":{"$error":"#DIV/0!"}},null,{"$error":"#DIV/0!"},"OTRO",null,null,null,null,null,null,"c) Convenios activos y actividades de cooperación académica desarrollados por el programa con instituciones y programas de alta calidad y reconocimiento nacional e internacional."]
[null,null,null,null,null,4,{"$f":"G191","v":{"$error":"#DIV/0!"}},null,{"$error":"#DIV/0!"},"OTRO",null,null,null,null,null,null,"d) Proyectos de investigación, innovación, creación artística y cultural y/o proyección desarrollados como producto de la cooperación académica y profesional, realizada por directivos, profesores y estudiantes del programa, con miembros de comunidades nacionales e internacionales de reconocido liderazgo en el área del programa."]
[null,null,null,null,null,5,{"$f":"G191","v":{"$error":"#DIV/0!"}},null,{"$error":"#DIV/0!"},"OTRO",null,null,null,null,null,null,"e) Profesores, estudiantes y directivos del programa con participación activa en redes u organismos nacionales e internacionales de la que se hayan derivado productos concretos como publicaciones en coautoría, cofinanciación de proyectos, registros y patentes, entre otros."]
[null,null,null,null,null,6,{"$f":"G191","v":{"$error":"#DIV/0!"}},null,{"$error":"#DIV/0!"},"OTRO",null,null,null,null,null,null,"f) Inversión efectivamente realizada por la institución para los fines de internacionalización en los últimos cinco años."]
[null,null,null,null,null,7,{"$f":"G191","v":{"$error":"#DIV/0!"}},null,{"$error":"#DIV/0!"},"OTRO",null,null,null,null,null,null,"g) Prospecto o iniciativas en curso de doble titulación con otras entidades, de acuerdo con el tipo y naturaleza del programa."]
[null,null,null,null,null,8,{"$f":"G191","v":{"$error":"#DIV/0!"}},null,{"$error":"#DIV/0!"},"OTRO",null,null,null,null,null,null,"h) Incidencia verificable en el enriquecimiento de la calidad del programa de la interacción con comunidades académicas nacionales e internacionales."]
[null,null,null,null,null,9,{"$f":"G191","v":{"$error":"#DIV/0!"}},null,{"$error":"#DIV/0!"},"OTRO",null,null,null,null,null,null,"i) Evidencias del impacto social que ha generado la inserción del programa en los contextos académicos nacionales e internacionales, de acuerdo a su naturaleza."]
[null,null,"CALIFICACIÓN CARACTERÍSTICA 27",null,null,null,null,null,{"$f":"(SUM(I191:I199))/D191","v":{"$error":"#DIV/0!"}}]
[null,null,"CARACTERÍSTICA 28",{"$f":"+'3.Resultado'!E39","v":{"$error":"#DIV/0!"}},8,1,{"$f":"+D201/E201","v":{"$error":"#DIV/0!"}},null,{"$f":"G201*H201","v":{"$error":"#DIV/0!"}},"OTRO",null,null,null,null,null,null,"a) Convenios activos de intercambio con universidades nacionales y extranjeras."]
[null,null,null,null,null,2,{"$f":"G201","v":{"$error":"#DIV/0!"}},null,{"$error":"#DIV/0!"},"OTRO",null,null,null,null,null,null,"b) Número de estudiantes extranjeros en el programa en los últimos 5 años."]
[null,null,null,null,null,3,{"$f":"G201","v":{"$error":"#DIV/0!"}},null,{"$error":"#DIV/0!"},"OTRO",null,null,null,null,null,null,"c) Experiencias de homologación de cursos realizados en otros programas nacionales o extranjeros."]
[null,null,null,null,null,4,{"$f":"G201","v":{"$error":"#DIV/0!"}},null,{"$error":"#DIV/0!"},"OTRO",null,null,null,null,null,null,"d) Profesores o expertos visitantes nacionales y extranjeros que ha recibido el programa en los últimos cinco años (objetivos, duración y resultados de su estadía)."]
[null,null,null,null,null,5,{"$f":"G201","v":{"$error":"#DIV/0!"}},null,{"$error":"#DIV/0!"},"OTRO",null,null,null,null,null,null,"e) Profesores y estudiantes adscritos al programa que en los últimos cinco años han participado en actividades de cooperación académica y profesional con programas nacionales e internacionales de reconocido liderazgo en el área (semestre académico de intercambio, pasantía o práctica, rotación médica, curso corto, misión, profesor visitante/conferencia, estancia de investigación, estudios de postgrado, profesor en programa de pregrado y/o postgrado, congresos, foros, seminarios, simposios, educación continuada, par académico, parques tecnológicos, incubadoras de empresas, mesas y ruedas de negociación económica y tecnológica, entre otros)."]
[null,null,null,null,null,6,{"$f":"G201","v":{"$error":"#DIV/0!"}},null,{"$error":"#DIV/0!"},"OTRO",null,null,null,null,null,null,"f) Resultados efectivos de la participación de profesores y estudiantes adscritos al programa en actividades de cooperación académica."]
[null,null,null,null,null,7,{"$f":"G201","v":{"$error":"#DIV/0!"}},null,{"$error":"#DIV/0!"},"OTRO",null,null,null,null,null,null,"g) Participación de profesores adscritos al programa en redes académicas, científicas, técnicas y tecnológicas, económicas, a nivel nacional e internacional, de acuerdo con el tipo y modalidad del programa."]
[null,null,null,null,null,8,{"$f":"G201","v":{"$error":"#DIV/0!"}},null,{"$error":"#DIV/0!"},"OTRO",null,null,null,null,null,null,"h) Inversión efectiva desarrollada para proyectos de movilidad en doble vía en los últimos cinco años."]
[null,null,"CALIFICACIÓN CARACTERÍSTICA 28",null,null,null,null,null,{"$f":"(SUM(I201:I208))/D201","v":{"$error":"#DIV/0!"}}]
["CALIFICACIÓN FACTOR 5",null,null,null,null,null,null,null,{"$f":"(I209*D201+I200*D191)/100","v":{"$error":"#DIV/0!"}}]
["FACTOR 6",{"$f":"+'3.Resultado'!E41","v":{"$error":"#DIV/0!"}},"CARACTERÍSTICA 29",{"$f":"+'3.Resultado'!E42","v":{"$error":"#DIV/0!"}},11,1,{"$f":"+D211/E211","v":{"$error":"#DIV/0!"}},null,{"$error":"#DIV/0!"},"OTRO",null,null,null,null,null,null,"a) Criterios, estrategias y actividades del programa, orientados a promover la capacidad de indagación y búsqueda, y la formación de un espíritu investigativo, creativo e innovador en los estudiantes."]
[null,null,null,null,null,2,{"$f":"G211","v":{"$error":"#DIV/0!"}},null,{"$error":"#DIV/0!"},"OTRO",null,null,null,null,null,null,"b) Existencia y utilización de mecanismos por parte de los profesores adscritos al programa para incentivar en los estudiantes la generación de ideas y problemas de investigación, la identificación de problemas en el ámbito empresarial susceptibles de resolver mediante la aplicación del conocimiento y la innovación."]
[null,null,null,null,null,3,{"$f":"G211","v":{"$error":"#DIV/0!"}},null,{"$error":"#DIV/0!"},"OTRO",null,null,null,null,null,null,"c) Estudiantes que están vinculados como monitores, auxiliares de investigación e integrantes de semilleros y/o grupos de investigación."]
[null,null,null,null,null,4,{"$f":"G211","v":{"$error":"#DIV/0!"}},null,{"$error":"#DIV/0!"},"OTRO",null,null,null,null,null,null,"d) Grupos y semilleros de investigación del programa en los que participan estudiantes, de acuerdo con su tipo y modalidad."]
[null,null,null,null,null,5,{"$f":"G211","v":{"$error":"#DIV/0!"}},null,{"$error":"#DIV/0!"},"OTRO",null,null,null,null,null,null,"e) Actividades académicas –cursos electivos, seminarios, pasantías, eventos– derivados de líneas de investigación en los últimos cinco años."]
[null,null,null,null,null,6,{"$f":"G211","v":{"$error":"#DIV/0!"}},null,{"$error":"#DIV/0!"},"OTRO",null,null,null,null,null,null,"f) Actividades académicas –pasantías, talleres, actividades conjuntas- relacionadas con la realidad empresarial, organizadas desde los primeros semestres con una lógica enfocada en el entendimiento creciente de aquella según sus mayores grados de complejidad."]
[null,null,null,null,null,7,{"$f":"G211","v":{"$error":"#DIV/0!"}},null,{"$error":"#DIV/0!"},"OTRO",null,null,null,null,null,null,"g) Existencia dentro del plan de estudios de espacios académicos y de vinculación con el sector productivo donde se analiza la naturaleza de la investigación científica, técnica y tecnológica, la innovación, sus objetos de indagación, sus problemas, oportunidades y sus resultados y soluciones."]
[null,null,null,null,null,8,{"$f":"G211","v":{"$error":"#DIV/0!"}},null,{"$error":"#DIV/0!"},"OTRO",null,null,null,null,null,null,"h) Participación de los estudiantes en los programas institucionales de jóvenes investigadores."]
[null,null,null,null,null,9,{"$f":"G211","v":{"$error":"#DIV/0!"}},null,{"$error":"#DIV/0!"},"OTRO",null,null,null,null,null,null,"i) Participación de los estudiantes en prácticas empresariales en temas de investigación y desarrollo, ingeniería y experimentación en Colombia y en el Exterior."]
[null,null,null,null,null,10,{"$f":"G211","v":{"$error":"#DIV/0!"}},null,{"$error":"#DIV/0!"},"OTRO",null,null,null,null,null,null,"j) Participación de los estudiantes en proyectos Universidad Empresa Estado que adelante la Institución."]
[null,null,null,null,null,11,{"$f":"G211","v":{"$error":"#DIV/0!"}},null,{"$error":"#DIV/0!"},"OTRO",null,null,null,null,null,null,"k) Participación de los estudiantes en programas de innovación tales como: transferencia de conocimiento, emprendimiento y creatividad."]
[null,null,"CALIFICACIÓN CARACTERÍSTICA 29",null,null,null,null,null,{"$f":"(SUM(I211:I221))/D211","v":{"$error":"#DIV/0!"}}]
[null,null,"CARACTERÍSTICA 30",{"$f":"+'3.Resultado'!E43","v":{"$error":"#DIV/0!"}},8,1,{"$f":"+D223/E223","v":{"$error":"#DIV/0!"}},null,{"$error":"#DIV/0!"},"OTRO",null,null,null,null,null,null,"a). Criterios, estrategias y políticas institucionales en materia de investigación, innovación y creación artística y cultural que se evidencie en mecanismos efectivos que estimulen el desarrollo de los procesos investigativos, de innovación y creativos, y establezcan criterios de evaluación de su calidad y pertinencia, ampliamente difundidos y aceptados por la comunidad académica."]
[null,null,null,null,null,2,{"$f":"G223","v":{"$error":"#DIV/0!"}},null,{"$error":"#DIV/0!"},"OTRO",null,null,null,null,null,null,"b). Correspondencia entre el número y nivel de formación de los profesores adscritos al programa con la actividad investigativa y de innovación y la creación artística y cultural, relacionadas con la naturaleza del programa."]
[null,null,null,null,null,3,{"$f":"G223","v":{"$error":"#DIV/0!"}},null,{"$error":"#DIV/0!"},"OTRO",null,null,null,null,null,null,"c). Recursos humanos, logísticos y financieros con que cuenta el programa, asociados a proyectos y a otras actividades de investigación, innovación y creación artística y cultural."]
[null,null,null,null,null,4,{"$f":"G223","v":{"$error":"#DIV/0!"}},null,{"$error":"#DIV/0!"},"OTRO",null,null,null,null,null,null,"d). Grupos de investigación conformados por profesores y estudiantes adscritos al programa, reconocidos por COLCIENCIAS o por otro organismo."]
[null,null,null,null,null,5,{"$f":"G223","v":{"$error":"#DIV/0!"}},null,{"$error":"#DIV/0!"},"OTRO",null,null,null,null,null,null,"e). Impacto a nivel regional, nacional e internacional de la investigación, la innovación y la creación artística y cultural del programa, de acuerdo con su naturaleza."]
[null,null,null,null,null,6,{"$f":"G223","v":{"$error":"#DIV/0!"}},null,{"$error":"#DIV/0!"},"OTRO",null,null,null,null,null,null,"f). Publicaciones en revistas indexadas y especializadas nacionales e internacionales, innovaciones, patentes, productos o procesos técnicos y tecnológicos patentables o no patentables o protegidas por secreto industrial, libros, capítulos de libros, dirección de trabajos de grado de maestría y doctorado, paquetes tecnológicos, normas resultado de investigación, producción artística y cultural, productos de apropiación social del conocimiento, productos asociados a servicios técnicos o consultoría cualificada, elaborados por profesores adscritos al programa, de acuerdo con su tipo y naturaleza."]
[null,null,null,null,null,7,{"$f":"G223","v":{"$error":"#DIV/0!"}},null,{"$error":"#DIV/0!"},"OTRO",null,null,null,null,null,null,"g). En el caso de las artes, el reconocimiento en libros de arte y revistas especializadas, la presentación, exposición o ejecución en instituciones de reconocido prestigio, la participación en eventos organizados por comunidades artísticas y académicas. En el caso de la literatura, la publicación por editoriales reconocidas en el ámbito literario e incluidas en antologías, entre otras."]
[null,null,null,null,null,8,{"$f":"G223","v":{"$error":"#DIV/0!"}},null,{"$error":"#DIV/0!"},"OTRO",null,null,null,null,null,null,"h). Apoyo administrativo y financiero para el desarrollo y gestión de la investigación, gestión del conocimiento (vigilancia tecnológica), la creación de empresas y de planes de negocios (como los centros de incubación y financiación empresarial, oficinas de transferencia de resultados de investigación, centros de investigación y desarrollo tecnológico, entre otros) proyectos de innovación en conjunto con empresas y la creación artística y cultural, de acuerdo con la naturaleza del programa."]
[null,null,"CALIFICACIÓN CARACTERÍSTICA 30",null,null,null,null,null,{"$f":"(SUM(I223:I230))/D223","v":{"$error":"#DIV/0!"}}]
["CALIFICACIÓN FACTOR 6",null,null,null,null,null,null,null,{"$f":"(I231*D223+I222*D211)/100","v":{"$error":"#DIV/0!"}}]
["FACTOR 7",{"$f":"+'3.Resultado'!E45","v":{"$error":"#DIV/0!"}},"CARACTERÍSTICA 31",{"$f":"+'3.Resultado'!E46","v":{"$error":"#DIV/0!"}},9,1,{"$f":"+D233/E233","v":{"$error":"#DIV/0!"}},null,{"$error":"#DIV/0!"},"OTRO",null,null,null,null,null,null,"a). Políticas sobre bienestar institucional suficientemente conocidas que propician el desarrollo integral de la comunidad institucional, reconozcan el valor y la diversidad y orientan la prestación de los servicios de bienestar."]
[null,null,null,null,null,2,{"$f":"G233","v":{"$error":"#DIV/0!"}},null,{"$error":"#DIV/0!"},"OTRO",null,null,null,null,null,null,"b). Estrategias que propicien un clima institucional adecuado que favorezca el desarrollo humano y promueva una cultura que reconozca el valor de la diversidad."]
[null,null,null,null,null,3,{"$f":"G233","v":{"$error":"#DIV/0!"}},null,{"$error":"#DIV/0!"},"OTRO",null,null,null,null,null,null,"c). Programas, servicios y actividades de bienestar dirigidos a los profesores, estudiantes y personal administrativo del programa."]
[null,null,null,null,null,4,{"$f":"G233","v":{"$error":"#DIV/0!"}},null,{"$error":"#DIV/0!"},"OTRO",null,null,null,null,null,null,"d). Participación de directivos, profesores, estudiantes y personal administrativo del programa en los programas, los servicios y las actividades de bienestar institucional."]
[null,null,null,null,null,5,{"$f":"G233","v":{"$error":"#DIV/0!"}},null,{"$error":"#DIV/0!"},"ENCUESTA ","X","X","X","X",null,null,"e). Apreciación de directivos, profesores, estudiantes y personal administrativo del programa sobre la calidad y pertinencia de los servicios y las actividades de bienestar y sobre su contribución a su desarrollo personal."]
[null,null,null,null,null,6,{"$f":"G233","v":{"$error":"#DIV/0!"}},null,{"$error":"#DIV/0!"},"OTRO",null,null,null,null,null,null,"f). Programas y estrategias de seguimiento integral a la comunidad institucional y acciones derivadas que conduzcan al desarrollo humano y el respeto a la diferencia"]
[null,null,null,null,null,7,{"$f":"G233","v":{"$error":"#DIV/0!"}},null,{"$error":"#DIV/0!"},"OTRO",null,null,null,null,null,null,"g). Investigación permanente de la problemática social del entorno que incide en la comunidad institucional."]
[null,null,null,null,null,8,{"$f":"G233","v":{"$error":"#DIV/0!"}},null,{"$error":"#DIV/0!"},"OTRO",null,null,null,null,null,null,"h). Estrategias que permitan a los estudiantes vincularse a redes de apoyo orientadas a contrarrestar las situaciones de vulnerabilidad."]
[null,null,null,null,null,9,{"$f":"G233","v":{"$error":"#DIV/0!"}},null,{"$error":"#DIV/0!"},"OTRO",null,null,null,null,null,null,"i). En los programas de salud, donde sea pertinente, evidenciar estrategias de bienestar adecuadas para los estudiantes en prácticas (lockers, camarotes, dormitorios) entre otros-."]
[null,null,"CALIFICACIÓN CARACTERÍSTICA 31",null,null,null,null,null,{"$f":"(SUM(I233:I241))/D233","v":{"$error":"#DIV/0!"}}]
[null,null,"CARACTERÍSTICA 32",{"$f":"+'3.Resultado'!E47","v":{"$error":"#DIV/0!"}},3,1,{"$f":"+D243/E243","v":{"$error":"#DIV/0!"}},null,{"$error":"#DIV/0!"},"OTRO",null,null,null,null,null,null,"a) Tasas de deserción estudiantil acumulada y por períodos académicos, acorde con los reportes efectuados al Sistema para la Prevención de la Deserción de la Educación Superior – SPADIES–."]
[null,null,null,null,null,2,{"$f":"G243","v":{"$error":"#DIV/0!"}},null,{"$error":"#DIV/0!"},"OTRO",null,null,null,null,null,null," b). Registros periódicos de la caracterización de los estudiantes teniendo en cuenta variables de vulnerabilidad. "]
[null,null,null,null,null,3,{"$f":"G243","v":{"$error":"#DIV/0!"}},null,{"$error":"#DIV/0!"},"OTRO",null,null,null,null,null,null,"c). Existencia de proyectos que establezcan estrategias pedagógicas y actividades extracurriculares orientadas a optimizar las tasas de retención y de graduación de estudiantes en los tiempos previstos, manteniendo la calidad académica del programa."]
[null,null,"CALIFICACIÓN CARACTERÍSTICA 32",null,null,null,null,null,{"$f":"(SUM(I243:I245))/D243","v":{"$error":"#DIV/0!"}}]
["CALIFICACIÓN FACTOR 7",null,null,null,null,null,null,null,{"$f":"(I246*D243+I242*D233)/100","v":{"$error":"#DIV/0!"}}]
["FACTOR 8",{"$f":"+'3.Resultado'!E49","v":{"$error":"#DIV/0!"}},"CARACTERÍSTICA 33",{"$f":"+'3.Resultado'!E50","v":{"$error":"#DIV/0!"}},7,1,{"$f":"+D248/E248","v":{"$error":"#DIV/0!"}},null,{"$error":"#DIV/0!"},"OTRO",null,null,null,null,null,null,"a) Correspondencia entre la organización, administración y gestión del programa, y los fines de la docencia, la investigación, la innovación o creación artística y cultural, la extensión o proyección social y la cooperación nacional e internacional en el programa."]
[null,null,null,null,null,2,{"$f":"G248","v":{"$error":"#DIV/0!"}},null,{"$error":"#DIV/0!"},"OTRO",null,null,null,null,null,null,"b) Existencia de certificaciones y de mecanismos orientados al mejoramiento de la calidad de procesos."]
[null,null,null,null,null,3,{"$f":"G248","v":{"$error":"#DIV/0!"}},null,{"$error":"#DIV/0!"},"OTRO",null,null,null,null,null,null,"c) Criterios institucionales para la toma de decisiones sobre asignación de cargos, responsabilidades y procedimientos en los diferentes programas académicos. Evidencias sobre la aplicación de estos criterios."]
[null,null,null,null,null,{"$f":"+F250+1","v":4},{"$f":"G248","v":{"$error":"#DIV/0!"}},null,{"$error":"#DIV/0!"},"OTRO",null,null,null,null,null,null,"d) Cantidad y dedicación del talento humano para cubrir las necesidades del programa."]
[null,null,null,null,null,5,{"$f":"G248","v":{"$error":"#DIV/0!"}},null,{"$error":"#DIV/0!"},"OTRO",null,null,null,null,null,null,"e) Formación y experiencia de quienes orientan la administración del programa."]
[null,null,null,null,null,6,{"$f":"G248","v":{"$error":"#DIV/0!"}},null,{"$error":"#DIV/0!"},"ENCUESTA ",null,null,"X",null,null,null,"f) Apreciación del personal administrativo del programa sobre la claridad de las funciones encomendadas, y sobre la articulación de sus tareas con las necesidades y objetivos del programa."]
[null,null,null,null,null,7,{"$f":"G248","v":{"$error":"#DIV/0!"}},null,{"$error":"#DIV/0!"},"ENCUESTA ","X","X",null,null,null,null,"g) Apreciación de profesores y estudiantes adscritos al programa sobre la eficiencia, eficacia y orientación de los procesos administrativos hacia el desarrollo de las funciones misionales."]
[null,null,"CALIFICACIÓN CARACTERÍSTICA 33",null,null,null,null,null,{"$f":"(SUM(I248:I254))/D248","v":{"$error":"#DIV/0!"}}]
[null,null,"CARACTERÍSTICA 34",{"$f":"+'3.Resultado'!E51","v":{"$error":"#DIV/0!"}},9,1,{"$f":"+D256/E256","v":{"$error":"#DIV/0!"}},null,{"$error":"#DIV/0!"},"OTRO",null,null,null,null,null,null,"a) Existencia y utilización de sistemas de información integrados y mecanismos eficaces que faciliten la comunicación interna y externa el programa."]
[null,null,null,null,null,2,{"$f":"G256","v":{"$error":"#DIV/0!"}},null,{"$error":"#DIV/0!"},"OTRO",null,null,null,null,null,null,"b) Existencia y efectividad de la página web institucional debidamente actualizada para mantener informados a los usuarios sobre los temas de interés institucional y facilitar la comunicación académica y administrativa."]
[null,null,null,null,null,3,{"$f":"G256","v":{"$error":"#DIV/0!"}},null,{"$error":"#DIV/0!"},"OTRO",null,null,null,null,null,null,"c) La página web institucional incluye información detallada y actualizada sobre el currículo y los profesores adscritos al programa, incluyendo su formación y trayectoria."]
[null,null,null,null,null,4,{"$f":"G256","v":{"$error":"#DIV/0!"}},null,{"$error":"#DIV/0!"},"OTRO",null,null,null,null,null,null,"d) Sistemas de consulta, registro y archivo de la información académica de los estudiantes y los profesores adscritos al programa."]
[null,null,null,null,null,5,{"$f":"G256","v":{"$error":"#DIV/0!"}},null,{"$error":"#DIV/0!"},"OTRO",null,null,null,null,null,null,"e) Mecanismos de gestión documental, organización, actualización y seguridad de los registros y archivos académicos de estudiantes, profesores, personal directivo y administrativo."]
[null,null,null,null,null,6,{"$f":"G256","v":{"$error":"#DIV/0!"}},null,{"$error":"#DIV/0!"},"ENCUESTA ","X","X","X","X",null,null,"f) Apreciación de directivos, profesores, estudiantes y personal administrativo sobre la eficacia de los sistemas de información académica y de los mecanismos de comunicación del programa."]
[null,null,null,null,null,7,{"$f":"G256","v":{"$error":"#DIV/0!"}},null,{"$error":"#DIV/0!"},"OTRO",null,null,null,null,null,null,"g) Profesores, administrativos y estudiantes que confirman el acceso con calidad a los sistemas de comunicación e información mediados por las TIC."]
[null,null,null,null,null,8,{"$f":"G256","v":{"$error":"#DIV/0!"}},null,{"$error":"#DIV/0!"},"OTRO",null,null,null,null,null,null,"h) Existencia de estrategias que garanticen la conectividad a los miembros de la comunidad académica del programa, de acuerdo con la modalidad en que éste es ofrecido."]
[null,null,null,null,null,9,{"$f":"G256","v":{"$error":"#DIV/0!"}},null,{"$error":"#DIV/0!"},"OTRO",null,null,null,null,null,null,"i) Mecanismos de comunicación para facilitar que la población estudiantil en toda su diversidad tenga acceso a la información."]
[null,null,"CALIFICACIÓN CARACTERÍSTICA 34",null,null,null,null,null,{"$f":"(SUM(I256:I264))/D256","v":{"$error":"#DIV/0!"}}]
[null,null,"CARACTERÍSTICA 35",{"$f":"+'3.Resultado'!E52","v":{"$error":"#DIV/0!"}},4,1,{"$f":"+D266/E266","v":{"$error":"#DIV/0!"}},null,{"$error":"#DIV/0!"},"ENCUESTA ","X","X",null,null,null,null,"a) Apreciación de profesores y estudiantes adscritos al programa sobre la orientación académica que imparten los directivos del mismo y sobre el liderazgo que ejercen."]
[null,null,null,null,null,2,{"$f":"G266","v":{"$error":"#DIV/0!"}},null,{"$error":"#DIV/0!"},"OTRO",null,null,null,null,null,null,"b) Lineamientos y políticas que orientan la gestión del programa, debidamente divulgados y apropiados por los directivos, profesores y personal administrativo del mismo."]
[null,null,null,null,null,3,{"$f":"G266","v":{"$error":"#DIV/0!"}},null,{"$error":"#DIV/0!"},"OTRO",null,null,null,null,null,null,"c) Documentos institucionales que establecen la forma de operación (procesos y procedimientos) de las distintas instancias relacionadas con la gestión del programa."]
[null,null,null,null,null,4,{"$f":"G266","v":{"$error":"#DIV/0!"}},null,{"$error":"#DIV/0!"},"OTRO",null,null,null,null,null,null,"d) Mecanismos eficientes de participación de la comunidad académica en la gestión del programa."]
[null,null,"CALIFICACIÓN CARACTERÍSTICA 35",null,null,null,null,null,{"$f":"(SUM(I266:I269))/D266","v":{"$error":"#DIV/0!"}}]
["CALIFICACIÓN FACTOR 8",null,null,null,null,null,null,null,{"$f":"(I270*D266+I265*D256+I255*D248)/100","v":{"$error":"#DIV/0!"}}]
["FACTOR 9",{"$f":"+'3.Resultado'!E54","v":{"$error":"#DIV/0!"}},"CARACTERÍSTICA 36",{"$f":"+'3.Resultado'!E55","v":{"$error":"#DIV/0!"}},8,1,{"$f":"+D272/E272","v":{"$error":"#DIV/0!"}},null,{"$f":"G272*H272","v":{"$error":"#DIV/0!"}},"OTRO",null,null,null,null,null,null,"a) Existencia de registros actualizados sobre ocupación y ubicación profesional de los egresados del programa."]
[null,null,null,null,null,2,{"$f":"G272","v":{"$error":"#DIV/0!"}},null,{"$error":"#DIV/0!"},"OTRO",null,null,null,null,null,null,"b) Correspondencia entre la ocupación y ubicación profesional de los egresados y el perfil de formación del programa."]
[null,null,null,null,null,3,{"$f":"G272","v":{"$error":"#DIV/0!"}},null,{"$error":"#DIV/0!"},"ENCUESTA ",null,null,null,null,"X","X","c) Apreciación de los egresados, empleadores y usuarios externos sobre la calidad de la formación dada por el programa."]
[null,null,null,null,null,4,{"$f":"G272","v":{"$error":"#DIV/0!"}},null,{"$error":"#DIV/0!"},"ENCUESTA ",null,null,null,null,"X",null,"d) Apreciación de los egresados acerca de la forma como el programa favorece el desarrollo del proyecto de vida."]
[null,null,null,null,null,5,{"$f":"G272","v":{"$error":"#DIV/0!"}},null,{"$error":"#DIV/0!"},"OTRO",null,null,null,null,null,null,"e) Utilización de la información contenida en el Observatorio Laboral para la Educación, como insumo para estudiar la pertinencia del programa."]
[null,null,null,null,null,6,{"$f":"G272","v":{"$error":"#DIV/0!"}},null,{"$error":"#DIV/0!"},"OTRO",null,null,null,null,null,null,"f) Evidencia de los procesos de análisis de la situación de los egresados."]
[null,null,null,null,null,7,{"$f":"G272","v":{"$error":"#DIV/0!"}},null,{"$error":"#DIV/0!"},"OTRO",null,null,null,null,null,null,"g) Mecanismos y estrategias para efectuar ajustes al programa en atención a las necesidades del entorno, evidenciados a través del seguimiento de los egresados."]
[null,null,null,null,null,8,{"$f":"G272","v":{"$error":"#DIV/0!"}},null,{"$error":"#DIV/0!"},"OTRO",null,null,null,null,null,null,"h) Estrategias que faciliten el paso del estudiante al mundo laboral."]
[null,null,"CALIFICACIÓN CARACTERÍSTICA 36",null,null,null,null,null,{"$f":"(SUM(I272:I279))/D272","v":{"$error":"#DIV/0!"}}]
[null,null,"CARACTERÍSTICA 37",{"$f":"+'3.Resultado'!E56","v":{"$error":"#DIV/0!"}},4,1,{"$f":"+D281/E281","v":{"$error":"#DIV/0!"}},null,{"$f":"G281*H281","v":{"$error":"#DIV/0!"}},"OTRO",null,null,null,null,null,null,"a) Índice de empleo entre los egresados del programa."]
[null,null,null,null,null,2,{"$f":"G281","v":{"$error":"#DIV/0!"}},null,{"$error":"#DIV/0!"},"OTRO",null,null,null,null,null,null,"b) Egresados del programa que forman parte de comunidades académicas reconocidas, de asociaciones científicas, profesionales, tecnológicas, técnicas o artísticas, y del sector productivo y financiero, en el ámbito nacional o internacional."]
[null,null,null,null,null,3,{"$f":"G281","v":{"$error":"#DIV/0!"}},null,{"$error":"#DIV/0!"},"OTRO",null,null,null,null,null,null,"c) Egresados del programa que han recibido distinciones y reconocimientos significativos por su desempeño en la disciplina, profesión, ocupación u oficio correspondiente."]
[null,null,null,null,null,4,{"$f":"G281","v":{"$error":"#DIV/0!"}},null,{"$error":"#DIV/0!"},"ENCUESTA ",null,null,null,null,null,"X","d) Apreciación de empleadores sobre la calidad de la formación y el desempeño de los egresados del programa."]
[null,null,"CALIFICACIÓN CARACTERÍSTICA 37",null,null,null,null,null,{"$f":"(SUM(I281:I284))/D281","v":{"$error":"#DIV/0!"}}]
["CALIFICACIÓN FACTOR 9",null,null,null,null,null,null,null,{"$f":"(I285*D281+I280*D272)/100","v":{"$error":"#DIV/0!"}}]
["FACTOR 10",{"$f":"+'3.Resultado'!E58","v":{"$error":"#DIV/0!"}},"CARACTERÍSTICA 38",{"$f":"+'3.Resultado'!E59","v":{"$error":"#DIV/0!"}},5,1,{"$f":"+D287/E287","v":{"$error":"#DIV/0!"}},null,{"$f":"G287*H287","v":{"$error":"#DIV/0!"}},"OTRO",null,null,null,null,null,null,"a) Espacios que se destinan al desarrollo de cada una de las funciones sustantivas a que se dedica el programa y de las áreas destinadas al bienestar institucional."]
[null,null,null,null,null,2,{"$f":"G287","v":{"$error":"#DIV/0!"}},null,{"$f":"G288*H288","v":{"$error":"#DIV/0!"}},"OTRO",null,null,null,null,null,null,"b) Existencia y uso adecuado de aulas, laboratorios, talleres, sitios de estudio para los alumnos, salas de cómputo, oficinas de profesores, sitios para la creación artística y cultural, auditorios y salas de conferencias, oficinas administrativas, cafeterías, baños, servicios, campos de juego, espacios libres, zonas verdes y demás espacios destinados al bienestar en general."]
[null,null,null,null,null,3,{"$f":"G287","v":{"$error":"#DIV/0!"}},null,{"$error":"#DIV/0!"},"OTRO",null,null,null,null,null,null,"c) Existencia de planes y proyectos en ejecución para la conservación, expansión, mejoras y mantenimiento de la planta física para el programa, de acuerdo con las normas técnicas respectivas."]
[null,null,null,null,null,4,{"$f":"G287","v":{"$error":"#DIV/0!"}},null,{"$error":"#DIV/0!"},"ENCUESTA ","X","X","X","X",null,null,"d) Apreciación de directivos, profesores, estudiantes y personal administrativo del programa sobre las características de la planta física, desde el punto de vista de su accesibilidad, diseño, capacidad, iluminación, ventilación y condiciones de seguridad e higiene."]
[null,null,null,null,null,5,{"$f":"G287","v":{"$error":"#DIV/0!"}},null,{"$error":"#DIV/0!"},"OTRO",null,null,null,null,null,null,"e) Disponibilidad de infraestructura física para atender las necesidades académicas, administrativas y de bienestar, que sea coherente con la modalidad en que se ofrece el programa."]
[null,null,"CALIFICACIÓN CARACTERÍSTICA 40",null,null,null,null,null,{"$f":"(SUM(I287:I291))/D287","v":{"$error":"#DIV/0!"}}]
[null,null,"CARACTERÍSTICA 39",{"$f":"+'3.Resultado'!E60","v":{"$error":"#DIV/0!"}},8,1,{"$f":"+D293/E293","v":{"$error":"#DIV/0!"}},null,{"$f":"G293*H293","v":{"$error":"#DIV/0!"}},"OTRO",null,null,null,null,null,null,"a) Origen, monto y distribución de los recursos presupuestales destinados al programa."]
[null,null,null,null,null,2,{"$f":"G293","v":{"$error":"#DIV/0!"}},null,{"$f":"G294*H294","v":{"$error":"#DIV/0!"}},"OTRO",null,null,null,null,null,null,"b) Mecanismos de seguimiento y verificación a la ejecución presupuestal del programa con base en planes de mejoramiento y mantenimiento."]
[null,null,null,null,null,3,{"$f":"G293","v":{"$error":"#DIV/0!"}},null,{"$error":"#DIV/0!"},"OTRO",null,null,null,null,null,null,"c) Distribución de la asignación presupuestal para actividades de docencia, investigación, creación artística y cultural, proyección social, bienestar institucional e internacionalización que en forma directa o indirecta se reflejen en el programa."]
[null,null,null,null,null,4,{"$f":"G293","v":{"$error":"#DIV/0!"}},null,{"$error":"#DIV/0!"},"OTRO",null,null,null,null,null,null,"d) Porcentaje de los ingresos que la Institución dedica a la inversión en el programa."]
[null,null,null,null,null,5,{"$f":"G293","v":{"$error":"#DIV/0!"}},null,{"$error":"#DIV/0!"},"OTRO",null,null,null,null,null,null,"e) Capacidad del programa para generar recursos externos para el apoyo a sus funciones misionales."]
[null,null,null,null,null,6,{"$f":"G293","v":{"$error":"#DIV/0!"}},null,{"$error":"#DIV/0!"},"ENCUESTA ",null,"X",null,"X",null,null,"f) Apreciación de directivos y profesores adscritos al programa sobre la suficiencia de los recursos presupuestales de que se dispone en el mismo y sobre la ejecución presupuestal."]
[null,null,null,null,null,7,{"$f":"G293","v":{"$error":"#DIV/0!"}},null,{"$error":"#DIV/0!"},"OTRO",null,null,null,null,null,null,"g) Existencia de estudio de viabilidad financiera del programa, que incluya un plan básico de inversión orientado a la consolidación del Proyecto Educativo."]
[null,null,null,null,null,8,{"$f":"G293","v":{"$error":"#DIV/0!"}},null,{"$f":"G300*H300","v":{"$error":"#DIV/0!"}},"OTRO",null,null,null,null,null,null,"h) Los planes de mejoramiento del programa se soportan en un presupuesto de apropiación programada."]
[null,null,"CALIFICACIÓN CARACTERÍSTICA 39",null,null,null,null,null,{"$f":"(SUM(I293:I300))/D293","v":{"$error":"#DIV/0!"}}]
[null,null,"CARACTERÍSTICA 40",{"$f":"+'3.Resultado'!E61","v":{"$error":"#DIV/0!"}},5,1,{"$f":"+D302/E302","v":{"$error":"#DIV/0!"}},null,{"$f":"G302*H302","v":{"$error":"#DIV/0!"}},"OTRO",null,null,null,null,null,null,"a). Manejo de los recursos físicos y financieros, en concordancia con los planes de desarrollo, los planes de mejoramiento y el tamaño y la complejidad de la institución y del programa."]
[null,null,null,null,null,2,{"$f":"G302","v":{"$error":"#DIV/0!"}},null,{"$error":"#DIV/0!"},"OTRO",null,null,null,null,null,null,"b). Criterios y mecanismos para la elaboración, ejecución y seguimiento del presupuesto y para la asignación de recursos físicos y financieros para el programa."]
[null,null,null,null,null,3,{"$f":"G302","v":{"$error":"#DIV/0!"}},null,{"$error":"#DIV/0!"},"OTRO",null,null,null,null,null,null,"c). Evidencias de los controles legales y administrativos para asegurar el manejo transparente de los recursos."]
[null,null,null,null,null,4,{"$f":"G302","v":{"$error":"#DIV/0!"}},null,{"$error":"#DIV/0!"},"ENCUESTA ",null,"X",null,"X",null,null,"d). Apreciación de directivos y profesores adscritos al programa sobre la equidad en la asignación de recursos físicos y financieros para el programa"]
[null,null,null,null,null,5,{"$f":"G302","v":{"$error":"#DIV/0!"}},null,{"$error":"#DIV/0!"},"OTRO",null,null,null,null,null,null,"e). En los programas de salud, donde sea pertinente, evidencia las dinámicas de administración compartida entre las Institución de Educación Superior y el Hospital Universitario o la IPS, en cuanto a convenios docentes-asistenciales y escenarios de prácticas, entre otros."]
[null,null,"CALIFICACIÓN CARACTERÍSTICA 40",null,null,null,null,null,{"$f":"(SUM(I302:I306))/D302","v":{"$error":"#DIV/0!"}}]
["CALIFICACIÓN FACTOR 10",null,null,null,null,null,null,null,{"$f":"(I307*D302+I301*D293+I292*D287)/100","v":{"$error":"#DIV/0!"}}]
["TOTALES",{"$f":"SUM(B8+B31+B55+B102+B191+B211+B233+B248+B272+B287)","v":{"$error":"#DIV/0!"}},null,null,null,null,null,null,{"$f":"(I308*B287+I286*B272+I271*B248+I247*B233+I232*B211+I210*B191+I190*B102+I101*B55+I54*B31+I30*B8)/100","v":{"$error":"#DIV/0!"}},"TOTAL",{"$f":"+COUNTIF(K8:K269, \"X\")","v":23},27,5,18,2,3]

{"sheet":"Ordenando","index":6,"n_rows":88,"n_cols":12,"rows_kept":88,"cut":false,"hidden":true,"merged":[]}
["MISIÓN Y PROYECTO INSISTUCIONAL",8,0.2,20]
["Misión Institucional",2,0.04,20]
["Proyecto Institucional (PROGRAMA DE DESARROLLO INTEGRAL- PDI) ",1,0.02,10]
["Proyecto educativo del programa",4,0.08,40]
["Relevancia Académica y Pertinencia Social del programa",3,6.0000000000000012E-2,30]
[null,10,0.2]
["ESTUDIANTES",8,0.2,20]
["Mecanismos de ingreso",4,5.3333333333333337E-2,26.666666666666668]
["Número y calidad de los estudiantes admitidos",5,6.6666666666666666E-2,33.333333333333336]
["Permanencia y deserción estudiantil",3,4.0000000000000008E-2,20]
["Participación en actividades de formación integral",1,1.3333333333333334E-2,6.666666666666667]
["Reglamento estudiantil",2,2.6666666666666668E-2,13.333333333333334]
[null,15,0.2]
["PROFESORES",9,0.22500000000000001,22.5]
["Selección y vinculación de profesores",3,1.8750000000000003E-2,8.3333333333333339]
["Estatuto profesoral",5,3.125E-2,13.888888888888889]
["Número, Dedicación y Nivel de Formación de los los profesores ",8,0.05,22.222222222222221]
["Desarrollo profesoral",2,1.2500000000000001E-2,5.5555555555555554]
["Interacción con las comunidades académicas",6,3.7500000000000006E-2,16.666666666666668]
["Estímulos a la docencia, investigación, extensión o proyección social y a la cooperación internacional",7,4.3749999999999997E-2,19.444444444444443]
["Producción de material docente",1,6.2500000000000003E-3,2.7777777777777777]
["Remuneración por méritos",4,2.5000000000000001E-2,11.111111111111111]
[null,36]
["PROCESOS ACADÉMICOS",11,0.27500000000000002,27.5]
["Integralidad del Currículo",14,3.6666666666666674E-2,13.333333333333334]
["Flexibilidad del currículo",13,3.4047619047619049E-2,12.380952380952381]
["Interdisciplinariedad",9,2.3571428571428573E-2,8.5714285714285712]
["Relaciones nacionales e internacionales del programa",5,1.3095238095238096E-2,4.7619047619047619]
["Metodologías de enseñanza y aprendizaje",11,2.8809523809523813E-2,10.476190476190476]
["Sistema de evaluación de estudiantes",10,2.6190476190476191E-2,9.5238095238095237]
["Trabajos de los estudiantes",7,1.8333333333333337E-2,6.666666666666667]
["Evaluación y autorregulación del programa",8,2.0952380952380955E-2,7.6190476190476186]
["Investigación formativa",6,1.5714285714285715E-2,5.7142857142857144]
["Compromiso con la investigación",12,3.1428571428571431E-2,11.428571428571429]
["Extensión o proyección social",4,1.0476190476190477E-2,3.8095238095238093]
["Recursos bibliográficos",3,7.8571428571428577E-3,2.8571428571428572]
["Recursos informáticos y de comunicación",2,5.2380952380952387E-3,1.9047619047619047]
["Recursos de apoyo docente",1,2.6190476190476194E-3,0.95238095238095233]
[null,105]
["EGRESADOS Y ARTICULACIÓN CON EL MEDIO",4,0.1,10,null,null,null,null,null,null,null,"Total"]
["Influencia del programa en el medio",2,3.3333333333333333E-2,33.333333333333336]
["Seguimiento de los egresados",1,1.6666666666666666E-2,16.666666666666668]
["Impacto de los egresados en el medio social y académico",3,5.000000000000001E-2,50]
[]
[]
[]
[]
[]
[]
[]
[]
[]
[]
[]
[]
[]
[]
[null,"Misión Institucional",1]
[null,"Proyecto Institucional (PROGRAMA DE DESARROLLO INTEGRAL- PDI) ",1]
[null,"Proyecto educativo del programa",1]
[null,"Relevancia Académica y Pertinencia Social del programa",1]
[null,"Mecanismos de ingreso",2]
[null,"Permanencia y deserción estudiantil",2]
[null,"Participación en actividades de formación integral",2]
[null,"Reglamento estudiantil",2]
[null,"Selección y vinculación de profesores",3]
[null,"Estatuto profesoral",3]
[null,"Número, Dedicación y Nivel de Formación de los los profesores ",3]
[null,"Interacción con las comunidades académicas",3]
[null,"Estímulos a la docencia, investigación, extensión o proyección social y a la cooperación internacional",3]
[null,"Producción de material docente",3]
[null,"Remuneración por méritos",3]
[null,"Integralidad del Currículo",4]
[null,"Flexibilidad del currículo",4]
[null,"Interdisciplinariedad",4]
[null,"Relaciones nacionales e internacionales del programa",4]
[null,"Metodologías de enseñanza y aprendizaje",4]
[null,"Trabajos de los estudiantes",4]
[null,"Evaluación y autorregulación del programa",4]
[null,"Investigación formativa",4]
[null,"Compromiso con la investigación",4]
[null,"Extensión o proyección social",4]
[null,"Recursos bibliográficos",4]
[null,"Recursos informáticos y de comunicación",4]
[null,"Recursos de apoyo docente",4]
[null,"Influencia del programa en el medio",6]
[null,"Seguimiento de los egresados",6]
[null,"Impacto de los egresados en el medio social y académico",6]